Workbook

Sheet Title Page

Sheet Inputs
C3: 2014/15 | D3: 2015/16 | E3: 2016/17 | F3: 2017/18 | G3: 2018/19 | H3: 2019/20
B5: WACC | C5: =[9]WACC!$F$28 -> 0.05846
B6: Forecast Inflation | C6: =[9]Input!$G$187 -> 0.0255
B8: Last Updated | C8: 2014-10-09

Sheet Exit Fee Calculation excl PV
A2: PTRM Output - MAB (closing balance)
C4: 2014/15 | D4: =YEAR_1 -> 2015/16 | E4: =YEAR_2 -> 2016/17 | F4: =YEAR_3 -> 2017/18 | G4: =YEAR_4 -> 2018/19 | H4: =YEAR_5 -> 2019/20
B5: Metering Assets | C5: ='PTRM output'!C16*1000000 -> 426540737.2 | D5: ='PTRM output'!D16*1000000 -> 406444693.2 | E5: ='PTRM output'!E16*1000000 -> 385192053.3 | F5: ='PTRM output'!F16*1000000 -> 362866127.3 | G5: ='PTRM output'!G16*1000000 -> 339335726.5 | H5: ='PTRM output'!H16*1000000 -> 314499807.7
B6: Other | C6: =('PTRM output'!C15-'PTRM output'!C16)*1000000 -> 22222091.34 | D6: =('PTRM output'!D15-'PTRM output'!D16)*1000000 -> 21258197.94 | E6: =('PTRM output'!E15-'PTRM output'!E16)*1000000 -> 19645715.22 | F6: =('PTRM output'!F15-'PTRM output'!F16)*1000000 -> 18041172.03 | G6: =('PTRM output'!G15-'PTRM output'!G16)*1000000 -> 17126457.57 | H6: =('PTRM output'!H15-'PTRM output'!H16)*1000000 -> 16337312.94
C7: =SUM(C5:C6) -> 448762828.6 | D7: 427702891.1 | E7: 404837768.5 | F7: 380907299.3 | G7: 356462184 | H7: 330837120.7
B9: Meters (closing balance) | C9: 2014/15
B10: Single Phase | C10: =2054856 -> 2054856
B11: Multi Phase | C11: 115292
C13: =SUM(C10:C12) -> 2170148
B14: Relationships
B15: Primary | C15: =Relationships!H17 -> 1
B16: Load Control | C16: =Relationships!H18 -> 0.3
B17: Solar PV | C17: =Relationships!H19 -> 0.7
B19: NTCs (closing for year) | C19: 2014/15
B20: Primary | C20: =ROUND('Demand Forecast'!$B$38,0) -> 1387351
B21: Load Control | C21: =ROUND('Demand Forecast'!$F$38,0) -> 737004
B22: Solar PV | C22: =ROUND('Demand Forecast'!$J$38,0) -> 304003 | D22: * assuming that Solar PV is used in conjunction with another tariff
C24: =SUM(C20:C23) -> 2428358
B26: Meters Associated Per Category | C26: 2014/15
B27: Primary | C27: =C13-C28 -> 1433144
B28: Load Control | C28: =C21 -> 737004
B29: Solar PV
C31: =SUM(C27:C30) -> 2170148
B33: Rebalanced meters (taking into account relationships) | C33: 2014/15
B34: Primary | C34: =C27 -> 1433144
B35: Load Control | C35: =C28*C16 -> 221101.2
B36: Solar PV
C38: =SUM(C34:C37) -> 1654245.2
B39: Primary | C39: =C34/C38 -> 0.8663431515
B40: Load Control | C40: =C35/C38 -> 0.1336568485
B41: Solar PV
C43: =SUM(C39:C42) -> 1
B44: Relative share of MAB (Metering Assets)
B45: Primary | C45: =C39*C5 -> 369530646.6
B46: Load Control | C46: =C40*C5 -> 57010090.68
B47: Solar PV
C49: =SUM(C45:C48) -> 426540737.2
A51: Calculated Exit Fee $ per NTC (based on Metering Assets only ie excl Non system)
B53: $ per tariff removal (Metering Asset Value / NTCs) | C53: 2014/15 | D53: =YEAR_1 -> 2015/16 | E53: =YEAR_2 -> 2016/17 | F53: =YEAR_3 -> 2017/18 | G53: =YEAR_4 -> 2018/19 | H53: =YEAR_5 -> 2019/20
B54: Primary | C54: =C45/C27 -> 257.8461387 | D54: =C54*(1+CPI) -> 264.4212152 | E54: 271.1639562 | F54: 278.0786371 | G54: 285.1696423 | H54: 292.4414682
B55: Load Control | C55: =C46/C28 -> 77.3538416 | D55: 79.32636456 | E55: 81.34918686 | F55: 83.42359112 | G55: 85.5508927 | H55: 87.73244046
B56: Solar PV
B58: Administration Costs
B59: 15 minutes @ administration labour rate | D59: =15/60*D63 -> 15.89280089 | E59: =15/60*E63 -> 16.44911249 | F59: 17.02489722 | G59: 17.62083673 | H59: 18.2376365
B60: Oncosts & overheads | D60: =D59*(1+D68)*(1+D66)+D59*(1+D71)+D59*(1+D67)-3*D59 -> 15.0742292 | E60: =E59*(1+E68)*(1+E66)+E59*(1+E71)+E59*(1+E67)-3*E59 -> 15.74443493 | F60: =F59*(1+F68)*(1+F66)+F59*(1+F71)+F59*(1+F67)-3*F59 -> 17.04051814 | G60: =G59*(1+G68)*(1+G66)+G59*(1+G71)+G59*(1+G67)-3*G59 -> 18.7588633 | H60: =H59*(1+H68)*(1+H66)+H59*(1+H71)+H59*(1+H67)-3*H59 -> 19.52230032
D61: =SUM(D59:D60) -> 30.96703009 | E61: =SUM(E59:E60) -> 32.19354742 | F61: 34.06541536 | G61: 36.37970003 | H61: 37.75993682
B63: Administration standard labour rate | D63: 63.57120355 | E63: 65.79644996 | F63: 68.0995889 | G63: 70.48334691 | H63: 72.95054598
B65: Oncosts & Overheads | D65: 2015-16 | E65: 2016-17 | F65: 2017-18 | G65: 2018-19 | H65: 2019-20
B66: Overhead Rate | D66: 0.4331 | E66: 0.4049 | F66: 0.4177 | G66: 0.4315 | H66: 0.4152
B67: Corporate Overhead Rate | D67: 0.07571586211 | E67: 0.06892497061 | F67: 0.06785335416 | G67: 0.06954852073 | H67: 0.06406545016
B68: Fleet Oncosts | D68: 0.1121 | E68: 0.1118 | F68: 0.1116 | G68: 0.1115 | H68: 0.1109
B69: Material Oncosts | D69: 0.0509 | E69: 0.0493 | F69: 0.0495 | G69: 0.0537 | H69: 0.0498
B71: Capital Allowance | D71: 0.2790278113 | E71: 0.3262673565 | F71: 0.3571488595 | G71: 0.4039233685 | H71: 0.4342291281
B73: Materials | D73: =(1+D69)*(1+D66)+(1+D67)-2 -> 0.5817606521
B74: Labour | D74: =(1+D68)*(1+D66)+(1+D67)+(1+D71)-3 -> 0.9484941834
B75: Contractors | D75: =(1+D66)+(1+D67)-2 -> 0.5088158621

Sheet AER Smooth Charges
B1: Annual charges ($Nominal) | H1: Volumes and Revenue($m Nominal)
B3: ='Price Path Calc'!C4 -> 2015/16 | C3: ='Price Path Calc'!D4 -> 2016/17 | D3: ='Price Path Calc'!E4 -> 2017/18 | E3: ='Price Path Calc'!F4 -> 2018/19 | F3: ='Price Path Calc'!G4 -> 2019/20 | H3: =B3 -> 2015/16 | I3: =C3 -> 2016/17 | J3: =D3 -> 2017/18 | K3: =E3 -> 2018/19 | L3: =F3 -> 2019/20 | O3: =I3 -> 2016/17 | P3: =J3 -> 2017/18 | Q3: 2018/19 | R3: 2019/20
N4: Forecast inflation | O4: =CPI -> 0.0255 | P4: =CPI -> 0.0255 | Q4: =CPI -> 0.0255 | R4: =CPI -> 0.0255
A5: ='Price Path Calc'!B12 -> Primary | H5: ='Price Path Calc'!C12 -> 1393042 | I5: ='Price Path Calc'!D12 -> 1407467 | J5: ='Price Path Calc'!E12 -> 1422042 | K5: ='Price Path Calc'!F12 -> 1436768 | L5: ='Price Path Calc'!G12 -> 1451646 | N5: X factor | O5: ='Price Path Calc'!D59 -> 0.03940343317 | P5: ='Price Path Calc'!E59 -> 0.03940343317 | Q5: ='Price Path Calc'!F59 -> 0.03940343317 | R5: ='Price Path Calc'!G59 -> 0.03940343317
A6: non-capital | B6: ='Price Path Calc'!C110/'Price Path Calc'!C$12 -> 10.80614953 | C6: =B6*(1-O$5)*(1+O$4) -> 10.64504907 | D6: =C6*(1-P$5)*(1+P$4) -> 10.48635033 | E6: 10.3300175 | F6: 10.17601532 | H6: =B6*H5/10^6 -> 15.05342016 | I6: =C6*I5/10^6 -> 14.98255528 | J6: =D6*J5/10^6 -> 14.9120306 | K6: =E6*K5/10^6 -> 14.84183859 | L6: =F6*L5/10^6 -> 14.77197194 | N6: =Inputs!B5 -> WACC | O6: =WACC -> 0.05846 | P6: =WACC -> 0.05846 | Q6: =WACC -> 0.05846 | R6: =WACC -> 0.05846
A7: capital | B7: ='Price Path Calc'!C103/'Price Path Calc'!C$12 -> 24.48074044 | C7: =B7*(1-O$5)*(1+O$4) -> 24.11577616 | D7: 23.75625285 | E7: 23.40208939 | F7: 23.05320587 | H7: =B7*H5/10^6 -> 34.10269963 | I7: =C7*I5/10^6 -> 33.94215912 | J7: =D7*J5/10^6 -> 33.78238931 | K7: =E7*K5/10^6 -> 33.62337316 | L7: =F7*L5/10^6 -> 33.46509409
A9: ='Price Path Calc'!B13 -> Load Control | H9: ='Price Path Calc'!C13 -> 740012 | I9: ='Price Path Calc'!D13 -> 743305 | J9: ='Price Path Calc'!E13 -> 746612 | K9: ='Price Path Calc'!F13 -> 749934 | L9: ='Price Path Calc'!G13 -> 753271
A10: non-capital | B10: ='Price Path Calc'!C111/'Price Path Calc'!C$13 -> 3.24184486 | C10: =B10*(1-O$5)*(1+O$4) -> 3.193514721 | D10: =C10*(1-P$5)*(1+P$4) -> 3.145905099 | E10: =D10*(1-Q$5)*(1+Q$4) -> 3.099005251 | F10: =E10*(1-R$5)*(1+R$4) -> 3.052804597 | H10: =B10*H9/10^6 -> 2.399004098 | I10: =C10*I9/10^6 -> 2.37375546 | J10: =D10*J9/10^6 -> 2.348770498 | K10: =E10*K9/10^6 -> 2.324049404 | L10: =F10*L9/10^6 -> 2.299589172
A11: capital | B11: ='Price Path Calc'!C104/'Price Path Calc'!C$13 -> 7.344222132 | C11: =B11*(1-O$5)*(1+O$4) -> 7.234732848 | D11: 7.126875854 | E11: 7.020626816 | F11: 6.915961762 | H11: =B11*H9/10^6 -> 5.434812509 | I11: =C11*I9/10^6 -> 5.3776131 | J11: =D11*J9/10^6 -> 5.321011035 | K11: =E11*K9/10^6 -> 5.26500675 | L11: =F11*L9/10^6 -> 5.209593432
A13: ='Price Path Calc'!B14 -> Solar PV | H13: ='Price Path Calc'!C14 -> 323232 | I13: ='Price Path Calc'!D14 -> 353232 | J13: ='Price Path Calc'!E14 -> 382232 | K13: ='Price Path Calc'!F14 -> 409232 | L13: ='Price Path Calc'!G14 -> 434232
A14: non-capital | B14: ='Price Path Calc'!C112/'Price Path Calc'!C$14 -> 7.564304673 | C14: =B14*(1-O$5)*(1+O$4) -> 7.451534349 | D14: =C14*(1-P$5)*(1+P$4) -> 7.340445231 | E14: =D14*(1-Q$5)*(1+Q$4) -> 7.231012253 | F14: =E14*(1-R$5)*(1+R$4) -> 7.123210726 | H14: =B14*H13/10^6 -> 2.445025328 | I14: =C14*I13/10^6 -> 2.632120381 | J14: =D14*J13/10^6 -> 2.805753061 | K14: =E14*K13/10^6 -> 2.959161606 | L14: =F14*L13/10^6 -> 3.09312604
A15: capital | B15: ='Price Path Calc'!C105/'Price Path Calc'!C$14 -> 17.13651831 | C15: =B15*(1-O$5)*(1+O$4) -> 16.88104331 | D15: 16.62937699 | E15: 16.38146257 | F15: 16.13724411 | H15: =B15*H13/10^6 -> 5.539071086 | I15: =C15*I13/10^6 -> 5.962924691 | J15: =D15*J13/10^6 -> 6.356280027 | K15: =E15*K13/10^6 -> 6.70381869 | L15: =F15*L13/10^6 -> 7.007307785
A17: Total
A18: Customers | H18: =SUM(H5,H9,H13) -> 2456286 | I18: =SUM(I5,I9,I13) -> 2504004 | J18: 2550886 | K18: 2595934 | L18: 2639149
A19: =A14 -> non-capital | H19: =SUM(H6,H10,H14) -> 19.89744958 | I19: 19.98843112 | J19: 20.06655415 | K19: 20.1250496 | L19: 20.16468715
A20: =A15 -> capital | G20: NPV | H20: =SUM(H7,H11,H15) -> 45.07658322 | I20: 45.28269692 | J20: 45.45968037 | K20: 45.5921986 | L20: 45.68199531
F21: Total Smoothed Revenue | G21: =NPV($O$6,H21:L21) -> 276.824538 | H21: =SUM(H19:H20) -> 64.97403281 | I21: =SUM(I19:I20) -> 65.27112804 | J21: =SUM(J19:J20) -> 65.52623453 | K21: =SUM(K19:K20) -> 65.7172482 | L21: =SUM(L19:L20) -> 65.84668246
F23: Total Unsmoothed Revenue | G23: =NPV($O$6,H23:L23) -> 276.824538 | H23: ='PTRM output'!D25/10^6 -> 64.97403281 | I23: ='PTRM output'!E25/10^6 -> 65.02921817 | J23: ='PTRM output'!F25/10^6 -> 65.45928798 | K23: ='PTRM output'!G25/10^6 -> 65.87541937 | L23: ='PTRM output'!H25/10^6 -> 66.04113192
F25: Difference in NPVs | G25: =G21-G23 -> 6.999130164e-10 | L25: =L21/L23-1 -> -0.002944368948 | M25: Difference between final year revenue and requirement

Sheet AER Upfront capital charges
A2: Upfront capital charge ($2014-15)
A4: Labour
B6: Labour hrs | C6: Labour rate
A7: DC 1 Element Single Phase | B7: 1.25 | C7: C-I-C
A8: DC 2 Element Single Phase | B8: 1.25 | C8: C-I-C
A9: DC Polyphase | B9: 1.65 | C9: C-I-C
A10: CT Polyphase | B10: 1.65 | C10: C-I-C
A13: Oncosts & overhead rates
A15: General overheads | B15: C-I-C
A16: Fleet oncosts | B16: C-I-C
A17: Material oncosts | B17: C-I-C
A18: Capital allowance | B18: C-I-C
A20: Proposed
B22: Hardware | C22: Labour | D22: Oncosts | E22: Overheads | F22: Allowance | G22: Total
A23: =[10]Relationships!B4 -> DC 1 Element Single Phase | G23: 297.8444003
A24: =[10]Relationships!B5 -> DC 2 Element Single Phase | G24: 388.2549391
A25: =[10]Relationships!B6 -> DC Polyphase | G25: 606.1559373
A26: =[10]Relationships!B7 -> CT Polyphase | G26: 1639.26929
A28: Approved
B30: Hardware | C30: Labour | D30: Oncosts | E30: Overheads | F30: Allowance | G30: Total
A31: DC 1 Element Single Phase | G31: 297.8444003
A32: DC 2 Element Single Phase | G32: 388.2549391
A33: DC Polyphase | G33: 581.2739333
A34: CT Polyphase | G34: 1639.26929

Sheet Price Path Calc
A2: PTRM Output - pre smoothed
C4: =YEAR_1 -> 2015/16 | D4: =YEAR_2 -> 2016/17 | E4: =YEAR_3 -> 2017/18 | F4: =YEAR_4 -> 2018/19 | G4: =YEAR_5 -> 2019/20
B5: ROA & Depn | C5: ='PTRM output'!D39 -> 45076583.22 | D5: ='PTRM output'!E39 -> 45014758.14 | E5: ='PTRM output'!F39 -> 44917352.74 | F5: ='PTRM output'!G39 -> 44521127.86 | G5: ='PTRM output'!H39 -> 44253477.4
B6: O&M (incl DRC and Tax) | C6: ='PTRM output'!D40 -> 19897449.58 | D6: ='PTRM output'!E40 -> 20014460.04 | E6: ='PTRM output'!F40 -> 20541935.24 | F6: ='PTRM output'!G40 -> 21354291.51 | G6: ='PTRM output'!H40 -> 21787654.52
C7: =SUM(C5:C6) -> 64974032.81 | D7: =SUM(D5:D6) -> 65029218.17 | E7: 65459287.98 | F7: 65875419.37 | G7: 66041131.92
A9: Forecast NTCs
B11: NTCs (avg for year) | C11: =YEAR_1 -> 2015/16 | D11: =YEAR_2 -> 2016/17 | E11: =YEAR_3 -> 2017/18 | F11: =YEAR_4 -> 2018/19 | G11: =YEAR_5 -> 2019/20
B12: Primary | C12: =ROUND('Demand Forecast'!$B$16,0) -> 1393042 | D12: =ROUND('Demand Forecast'!$B$17,0) -> 1407467 | E12: =ROUND('Demand Forecast'!$B$18,0) -> 1422042 | F12: =ROUND('Demand Forecast'!$B$19,0) -> 1436768 | G12: =ROUND('Demand Forecast'!$B$20,0) -> 1451646
B13: Load Control | C13: =ROUND('Demand Forecast'!$F$16,0) -> 740012 | D13: =ROUND('Demand Forecast'!$F$17,0) -> 743305 | E13: =ROUND('Demand Forecast'!$F$18,0) -> 746612 | F13: =ROUND('Demand Forecast'!$F$19,0) -> 749934 | G13: =ROUND('Demand Forecast'!$F$20,0) -> 753271
B14: Solar PV | C14: =ROUND('Demand Forecast'!$J$16,0) -> 323232 | D14: =ROUND('Demand Forecast'!$J$17,0) -> 353232 | E14: =ROUND('Demand Forecast'!$J$18,0) -> 382232 | F14: =ROUND('Demand Forecast'!$J$19,0) -> 409232 | G14: =ROUND('Demand Forecast'!$J$20,0) -> 434232
C16: =SUM(C12:C15) -> 2456286 | D16: =SUM(D12:D15) -> 2504004 | E16: 2550886 | F16: 2595934 | G16: 2639149
B17: Relationships
B18: Primary | C18: =Relationships!H17 -> 1
B19: Load Control | C19: =Relationships!H18 -> 0.3
B20: Solar PV | C20: =Relationships!H19 -> 0.7
B22: % weighting | C22: =YEAR_1 -> 2015/16 | D22: =YEAR_2 -> 2016/17 | E22: =YEAR_3 -> 2017/18 | F22: =YEAR_4 -> 2018/19 | G22: =YEAR_5 -> 2019/20
B23: Primary | C23: =C12*$C$18 -> 1393042 | D23: =D12*$C$18 -> 1407467 | E23: =E12*$C$18 -> 1422042 | F23: =F12*$C$18 -> 1436768 | G23: =G12*$C$18 -> 1451646
B24: Load Control | C24: =C13*$C$19 -> 222003.6 | D24: =D13*$C$19 -> 222991.5 | E24: =E13*$C$19 -> 223983.6 | F24: =F13*$C$19 -> 224980.2 | G24: =G13*$C$19 -> 225981.3
B25: Solar PV | C25: =C14*$C$20 -> 226262.4 | D25: =D14*$C$20 -> 247262.4 | E25: =E14*$C$20 -> 267562.4 | F25: =F14*$C$20 -> 286462.4 | G25: =G14*$C$20 -> 303962.4
C27: =SUM(C23:C26) -> 1841308 | D27: =SUM(D23:D26) -> 1877720.9 | E27: 1913588 | F27: 1948210.6 | G27: 1981589.7
B29: % weighting | C29: =YEAR_1 -> 2015/16 | D29: =YEAR_2 -> 2016/17 | E29: =YEAR_3 -> 2017/18 | F29: =YEAR_4 -> 2018/19 | G29: =YEAR_5 -> 2019/20
B30: Primary | C30: =C23/C$27 -> 0.7565502349 | D30: =D23/D$27 -> 0.7495613432 | E30: 0.7431286149 | F30: 0.7374808452 | G30: 0.7325663834
B31: Load Control | C31: =C24/C$27 -> 0.120568422 | D31: 0.1187564669 | E31: 0.11704902 | F31: 0.1154804311 | G31: 0.1140404091
B32: Solar PV | C32: =C25/C$27 -> 0.122881343 | D32: 0.1316821898 | E32: 0.1398223651 | F32: 0.1470387236 | G32: 0.1533932075
C34: =SUM(C30:C33) -> 1 | D34: =SUM(D30:D33) -> 1 | E34: 1 | F34: 1 | G34: 1
A36: Calculated $ per NTC
B38: $ per NTC per annum | C38: =YEAR_1 -> 2015/16 | D38: =YEAR_2 -> 2016/17 | E38: =YEAR_3 -> 2017/18 | F38: =YEAR_4 -> 2018/19 | G38: =YEAR_5 -> 2019/20
B39: Primary | C39: =C23/C27*C7/C12 -> 35.28688997 | D39: =D23/D27*D7/D12 -> 34.63199359 | E39: 34.20761835 | F39: 33.81329481 | G39: 33.32734921
B40: Load Control | C40: =C24/C27*C7/C13 -> 10.58606699 | D40: 10.38959808 | E40: 10.2622855 | F40: 10.14398844 | G40: 9.998204762
B41: Solar PV | C41: =C25/C27*C7/C14 -> 24.70082298 | D41: 24.24239551 | E41: 23.94533284 | F41: 23.66930637 | G41: 23.32914445
B43: Tariff Increase | C43: =YEAR_1 -> 2015/16 | D43: =YEAR_2 -> 2016/17 | E43: =YEAR_3 -> 2017/18 | F43: =YEAR_4 -> 2018/19 | G43: =YEAR_5 -> 2019/20
B44: Primary | D44: =(D39-C39)/C39 -> -0.01855919817 | E44: =(E39-D39)/D39 -> -0.01225384966 | F44: -0.0115273602 | G44: -0.01437143599
B45: Load Control | D45: =(D40-C40)/C40 -> -0.01855919817 | E45: =(E40-D40)/D40 -> -0.01225384966 | F45: -0.0115273602 | G45: -0.01437143599
B46: Solar PV | D46: =(D41-C41)/C41 -> -0.01855919817 | E46: =(E41-D41)/D41 -> -0.01225384966 | F46: -0.0115273602 | G46: -0.01437143599
B48: Total Revenue | C48: =YEAR_1 -> 2015/16 | D48: =YEAR_2 -> 2016/17 | E48: =YEAR_3 -> 2017/18 | F48: =YEAR_4 -> 2018/19 | G48: =YEAR_5 -> 2019/20 | I48: NPV
B49: Primary | C49: =C12*C39 -> 49156119.78 | D49: 48743388.12 | E49: 48644670.01 | F49: 48581859.96 | G49: 48379513.17 | I49: =NPV(WACC,C49:G49) -> 206092047.5
B50: Load Control | C50: 7833816.607 | D50: 7722640.199 | E50: 7661945.505 | F50: 7607321.829 | G50: 7531357.699 | I50: =NPV(WACC,C50:G50) -> 32485305.41
B51: Solar PV | C51: 7984096.414 | D51: 8563189.852 | E51: 9152672.463 | F51: 9686237.583 | G51: 10130261.05 | I51: =NPV(WACC,C51:G51) -> 38247185.13
C52: =SUM(C49:C51) -> 64974032.81 | D52: =SUM(D49:D51) -> 65029218.17 | E52: 65459287.98 | F52: 65875419.37 | G52: 66041131.92 | I52: =SUM(I49:I51) -> 276824538
B53: Check | C53: =C52-C7 -> 0 | D53: =D52-D7 -> 0 | E53: =E52-E7 -> 0 | F53: =F52-F7 -> 0 | G53: =G52-G7 -> 0
D54: =D52/C52-1 -> 0.0008493449828 | E54: =E52/D52-1 -> 0.006613485708 | F54: =F52/E52-1 -> 0.006357102297 | G54: =G52/F52-1 -> 0.002515544503
A56: Smoothed $ per NTC - what % year on year for each year across all categories gives you the same NPV as above
B58: CPI | D58: =CPI -> 0.0255 | E58: =CPI -> 0.0255 | F58: =CPI -> 0.0255 | G58: =CPI -> 0.0255
B59: X | D59: 0.03940343317 | E59: =$D$59 -> 0.03940343317 | F59: =$E$59 -> 0.03940343317 | G59: =$F$59 -> 0.03940343317
B61: $ per NTC per annum (smoothed) | C61: =YEAR_1 -> 2015/16 | D61: =YEAR_2 -> 2016/17 | E61: =YEAR_3 -> 2017/18 | F61: =YEAR_4 -> 2018/19 | G61: =YEAR_5 -> 2019/20
B62: Primary | C62: =C39 -> 35.28688997 | D62: =C62*(1+D$58)*(1-D$59) -> 34.76082523 | E62: =D62*(1+E$58)*(1-E$59) -> 34.24260318 | F62: 33.73210689 | G62: 33.2292212
B63: Load Control | C63: =C40 -> 10.58606699 | D63: =C63*(1+D$58)*(1-D$59) -> 10.42824757 | E63: =D63*(1+E$58)*(1-E$59) -> 10.27278095 | F63: 10.11963207 | G63: 9.968766359
B64: Solar PV | C64: =C41 -> 24.70082298 | D64: =C64*(1+D$58)*(1-D$59) -> 24.33257766 | E64: =D64*(1+E$58)*(1-E$59) -> 23.96982222 | F64: 23.61247482 | G64: 23.26045484
B66: cents per NTC per day (smoothed) | C66: =YEAR_1 -> 2015/16 | D66: =YEAR_2 -> 2016/17 | E66: =YEAR_3 -> 2017/18 | F66: =YEAR_4 -> 2018/19 | G66: =YEAR_5 -> 2019/20
B67: Primary | C67: =C62/365*100 -> 9.667641089 | D67: 9.523513762 | E67: 9.381535117 | F67: 9.241673121 | G67: 9.103896218
B68: Load Control | C68: =C63/365*100 -> 2.900292327 | D68: 2.857054129 | E68: 2.814460535 | F68: 2.772501936 | G68: 2.731168865
B69: Solar PV | C69: 6.767348762 | D69: 6.666459633 | E69: 6.567074582 | F69: 6.469171184 | G69: 6.372727353
B71: Increase | C71: =YEAR_1 -> 2015/16 | D71: =YEAR_2 -> 2016/17 | E71: =YEAR_3 -> 2017/18 | F71: =YEAR_4 -> 2018/19 | G71: =YEAR_5 -> 2019/20
B72: Primary | D72: =D62/C62-1 -> -0.01490822071 | E72: -0.01490822071 | F72: -0.01490822071 | G72: -0.01490822071
B73: Load Control | D73: =D63/C63-1 -> -0.01490822071 | E73: -0.01490822071 | F73: -0.01490822071 | G73: -0.01490822071
B74: Solar PV | D74: =D64/C64-1 -> -0.01490822071 | E74: -0.01490822071 | F74: -0.01490822071 | G74: -0.01490822071
B76: Total Revenue | C76: =YEAR_1 -> 2015/16 | D76: =YEAR_2 -> 2016/17 | E76: =YEAR_3 -> 2017/18 | F76: =YEAR_4 -> 2018/19 | G76: =YEAR_5 -> 2019/20 | I76: NPV
B77: Primary | C77: =C62*C12 -> 49156119.78 | D77: 48924714.4 | E77: 48694419.91 | F77: 48465211.75 | G77: 48237066.03 | I77: =NPV(WACC,C77:G77) -> 206095694.1
B78: Load Control | C78: 7833816.607 | D78: 7751368.559 | E78: 7669781.533 | F78: 7589056.155 | G78: 7509182.604 | I78: =NPV(WACC,C78:G78) -> 32486312.11
B79: Solar PV | C79: 7984096.414 | D79: 8595045.072 | E79: 9162033.088 | F79: 9662980.297 | G79: 10100433.82 | I79: =NPV(WACC,C79:G79) -> 38242531.79
C80: =SUM(C77:C79) -> 64974032.81 | D80: =SUM(D77:D79) -> 65271128.04 | E80: =SUM(E77:E79) -> 65526234.53 | F80: =SUM(F77:F79) -> 65717248.2 | G80: =SUM(G77:G79) -> 65846682.46 | I80: =SUM(I77:I79) -> 276824538
B81: De-escalated to 14/15 | C81: =C80/(1+CPI) -> 63358393.76 | D81: =D80/(1+CPI)^2 -> 62065432.91 | E81: =E80/(1+CPI)^3 -> 60758664.28 | F81: =F80/(1+CPI)^4 -> 59420555.97 | G81: =G80/(1+CPI)^5 -> 58057131.64
C82: =C80-C52 -> 0 | D82: =D80-D52 -> 241909.8627 | E82: =E80-E52 -> 66946.54721 | F82: =F80-F52 -> -158171.1655 | G82: =G80-G52 -> -194449.4581 | I82: =I80-I52 -> 0.0006999969482
A84: Examples of annual charges for NTC combinations
C86: =YEAR_1 -> 2015/16 | D86: =YEAR_2 -> 2016/17 | E86: =YEAR_3 -> 2017/18 | F86: =YEAR_4 -> 2018/19 | G86: =YEAR_5 -> 2019/20
A87: ='NTCs per NMI'!B7 -> 0.4146159821 | B87: Primary | C87: =C62 -> 35.28688997 | D87: =D62 -> 34.76082523 | E87: 34.24260318 | F87: 33.73210689 | G87: 33.2292212
A88: ='NTCs per NMI'!B16 -> 0.001015745509 | B88: Primary x 2 | C88: =C62*2 -> 70.57377995 | D88: =D62*2 -> 69.52165046 | E88: 68.48520635 | F88: 67.46421378 | G88: 66.45844239
A89: ='NTCs per NMI'!B8 -> 0.3924112621 | B89: Primary + Load Control | C89: =C62+C63 -> 45.87295697 | D89: =D62+D63 -> 45.1890728 | E89: 44.51538413 | F89: 43.85173896 | G89: 43.19798755
A90: ='NTCs per NMI'!B9 -> 0.005963690368 | B90: Primary + Load Control x 2 | C90: =C62+C63*2 -> 56.45902396 | D90: =D62+D63*2 -> 55.61732037 | E90: 54.78816508 | F90: 53.97137102 | G90: 53.16675391
A91: ='NTCs per NMI'!B12 -> 0.1181948502 | B91: Primary + Load Control + Solar PV | C91: =C62+C63+C64 -> 70.57377995 | D91: =D62+D63+D64 -> 69.52165046 | E91: 68.48520635 | F91: 67.46421378 | G91: 66.45844239
A92: ='NTCs per NMI'!B10 -> 0.06154051829 | B92: Primary + Solar PV | C92: =C62+C64 -> 59.98771296 | D92: =D62+D64 -> 59.09340289 | E92: 58.2124254 | F92: 57.34458171 | G92: 56.48967603
A95: Price Breakdown
B97: PTRM output with smoothing applied | C97: =YEAR_1 -> 2015/16 | D97: =YEAR_2 -> 2016/17 | E97: =YEAR_3 -> 2017/18 | F97: =YEAR_4 -> 2018/19 | G97: =YEAR_5 -> 2019/20
B98: ROA & Depn | C98: =C5/C$7*C$80 -> 45076583.22 | D98: =D5/D$7*D$80 -> 45182213.85 | E98: 44963290.63 | F98: 44414229.73 | G98: 44123178.84
B99: O&M (incl DRC and Tax) | C99: =C6/C$7*C$80 -> 19897449.58 | D99: =D6/D$7*D$80 -> 20088914.19 | E99: 20562943.9 | F99: 21303018.47 | G99: 21723503.62
C100: =SUM(C98:C99) -> 64974032.81 | D100: =SUM(D98:D99) -> 65271128.04 | E100: 65526234.53 | F100: 65717248.2 | G100: 65846682.46
C101: =C100-C80 -> 0 | D101: =D100-D80 -> 0 | E101: 0 | F101: 0 | G101: 0
B102: ROA & Depn | C102: =YEAR_1 -> 2015/16 | D102: =YEAR_2 -> 2016/17 | E102: =YEAR_3 -> 2017/18 | F102: =YEAR_4 -> 2018/19 | G102: =YEAR_5 -> 2019/20
B103: Primary | C103: =C$98*C30 -> 34102699.63 | D103: =D$98*D30 -> 33866840.9 | E103: 33413507.89 | F103: 32754643.68 | G103: 32323157.55
B104: Load Control | C104: =C$98*C31 -> 5434812.509 | D104: 5365680.086 | E104: 5262909.102 | F104: 5128974.397 | G104: 5031825.364
B105: Solar PV | C105: =C$98*C32 -> 5539071.086 | D105: 5949692.861 | E105: 6286873.638 | F105: 6530611.651 | G105: 6768195.926
C107: =SUM(C103:C106) -> 45076583.22 | D107: =SUM(D103:D106) -> 45182213.85 | E107: 44963290.63 | F107: 44414229.73 | G107: 44123178.84
C108: =C98-C107 -> 0 | D108: =D98-D107 -> 0 | E108: 0 | F108: 0 | G108: 0
B109: O&M (incl DRC and Tax) | C109: =YEAR_1 -> 2015/16 | D109: =YEAR_2 -> 2016/17 | E109: =YEAR_3 -> 2017/18 | F109: =YEAR_4 -> 2018/19 | G109: =YEAR_5 -> 2019/20
B110: Primary | C110: =C$99*C30 -> 15053420.16 | D110: =D$99*D30 -> 15057873.5 | E110: 15280912.02 | F110: 15710568.07 | G110: 15913908.48
B111: Load Control | C111: =C$99*C31 -> 2399004.098 | D111: 2385688.474 | E111: 2406872.431 | F111: 2460081.757 | G111: 2477357.24
B112: Solar PV | C112: =C$99*C32 -> 2445025.328 | D112: 2645352.211 | E112: 2875159.45 | F112: 3132368.646 | G112: 3332237.899
C114: 17345579.97 | D114: 17806423.99 | E114: 18230227.36 | F114: 18745966.71 | G114: 19274579.99
B117: CAPEX
B118: Meter Provision & Installation | C118: 0.8023612334
B119: Meter Maintenance | C119: 0.1976387666
B120: OPEX
B121: Meter Provision & Installation | C121: 0.02161076964
B122: Meter Maintenance | C122: 0.09749317886
B123: Meter Reading | C123: 0.7563250398
B124: Meter Data Services | C124: 0.1245710117
B126: $ per NTC per annum (smoothed) | C126: =YEAR_1 -> 2015/16 | D126: =YEAR_2 -> 2016/17 | E126: =YEAR_3 -> 2017/18 | F126: =YEAR_4 -> 2018/19 | G126: =YEAR_5 -> 2019/20
B127: Primary | C127: =SUM(C128:C131) -> 35.28688997 | D127: =C127*(1+D$58)*(1-D$59) -> 34.76082523 | E127: =D127*(1+E$58)*(1-E$59) -> 34.24260318 | F127: =E127*(1+F$58)*(1-F$59) -> 33.73210689 | G127: =F127*(1+G$58)*(1-G$59) -> 33.2292212
B128: Meter Provision & Installation | C128: =$C118*C$103/C$12+$C121*C$110/C$12 -> 19.8759263 | D128: 19.53783106 | E128: 19.08518572 | F128: 18.52809485 | G128: 18.10273329
B129: Meter Maintenance | C129: 5.891869215 | D129: 5.798672806 | E129: 5.691526111 | F129: 5.571714153 | G129: 5.469519783
B130: Meter Reading | C130: =$C123*C$110/C$12 -> 8.172961476 | D130: 8.091590621 | E130: 8.127282029 | F130: 8.270156365 | G130: 8.291337881
B131: Meter Data Service | C131: 1.346132979 | D131: 1.332730739 | E131: 1.338609316 | F131: 1.362141527 | G131: 1.365630243
B132: Load Control | C132: =SUM(C133:C136) -> 10.58606699 | D132: =C132*(1+D$58)*(1-D$59) -> 10.42824757 | E132: =D132*(1+E$58)*(1-E$59) -> 10.27278095 | F132: =E132*(1+F$58)*(1-F$59) -> 10.11963207 | G132: =F132*(1+G$58)*(1-G$59) -> 9.968766359
B133: Meter Provision & Installation | C133: =$C118*C$104/C$13+$C121*C$111/C$13 -> 5.962777891 | D133: 5.861349319 | E133: 5.725555716 | F133: 5.558428454 | G133: 5.430819987
B134: Meter Maintenance | C134: 1.767560764 | D134: 1.739601842 | E134: 1.707457833 | F134: 1.671514246 | G134: 1.640855935
B135: Meter Reading | C135: =$C123*C$111/C$13 -> 2.451888443 | D135: 2.427477186 | E135: 2.438184609 | F135: 2.481046909 | G135: 2.487401364
B136: Meter Data Service | C136: 0.4038398938 | D136: 0.3998192218 | E136: 0.4015827949 | F136: 0.4086424582 | G136: 0.4096890728
B137: Solar PV | C137: =SUM(C138:C141) -> 24.70082298 | D137: =SUM(D138:D141) -> 24.33257766 | E137: 23.96982222 | F137: 23.61247482 | G137: 23.26045484
B138: Meter Provision & Installation | C138: =$C118*C$105/C$14+$C121*C$112/C$14 -> 13.91314841 | D138: 13.67648175 | E138: 13.35963 | F138: 12.96966639 | G138: 12.6719133
B139: Meter Maintenance | C139: 4.12430845 | D139: 4.059070964 | E139: 3.984068278 | F139: 3.900199907 | G139: 3.828663848
B140: Meter Reading | C140: =$C123*C$112/C$14 -> 5.721073033 | D140: 5.664113435 | E140: 5.68909742 | F140: 5.789109455 | G140: 5.803936516
B141: Meter Data Service | C141: 0.9422930856 | D141: 0.9329115176 | E141: 0.9370265214 | F141: 0.9534990692 | G141: 0.95594117

Sheet PTRM output
B2: ALTERNATIVE CONTROL SERVICES: METERING - (NOMINAL)
A4: PTRM calculation to calculate return of, return on, operating and maintence & tax
A5: As at 15/7/2014
B6: MAB | C6: ='Demand Forecast'!$A$15-1&"/"&RIGHT('Demand Forecast'!$A$15,2) -> 2014/15 | D6: ='Demand Forecast'!$A$16-1&"/"&RIGHT('Demand Forecast'!$A$16,2) -> 2015/16 | E6: ='Demand Forecast'!$A$17-1&"/"&RIGHT('Demand Forecast'!$A$17,2) -> 2016/17 | F6: ='Demand Forecast'!$A$18-1&"/"&RIGHT('Demand Forecast'!$A$18,2) -> 2017/18 | G6: ='Demand Forecast'!$A$19-1&"/"&RIGHT('Demand Forecast'!$A$19,2) -> 2018/19 | H6: ='Demand Forecast'!$A$20-1&"/"&RIGHT('Demand Forecast'!$A$20,2) -> 2019/20
B7: Metering - disc | C7: =C60 -> 262.9623645 | D7: =D60 -> 247.0381641 | E7: 230.4664635 | F7: 213.2331535 | G7: 195.3240442 | H7: 176.7248766
B8: Metering - electronic | C8: =C67 -> 163.5783727 | D8: =D67 -> 159.4065291 | E8: 154.7255897 | F8: 149.6329738 | G8: 144.0116822 | H8: 137.7749312
B9: Office Equipment & Furniture | C9: =C74 -> -0.1244369644 | D9: =D74 -> -0.07770241362 | E9: -0.02773710117 | F9: 0.00975889104 | G9: 0.009874403699 | H9: 0.009761652557
B10: Motor Vehicles | C10: =C81 -> 4.016483622 | D10: =D81 -> 3.453844639 | E10: 2.869693494 | F10: 2.189918162 | G10: 1.486092954 | H10: 0.7800172364
B11: Plant & Equipment | C11: =C88 -> 1.189098925 | D11: =D88 -> 1.024630168 | E11: 0.8399295789 | F11: 0.6354801681 | G11: 0.4119493577 | H11: 0.1701151867
B12: Buildings | C12: =C95 -> 9.842926682 | D12: =D95 -> 9.914633535 | E12: 9.728667348 | F12: 9.437333281 | G12: 9.432016725 | H12: 9.419162941
B13: Land | C13: =C102 -> 6.034391351 | D13: =D102 -> 6.027129631 | E13: 5.661693435 | F13: 5.562787237 | G13: 5.704638312 | H13: 5.878832972
B14: IT Systems | C14: =C109 -> 1.263627725 | D14: =D109 -> 0.9156623852 | E14: 0.5734684606 | F14: 0.2058942924 | G14: 0.08188581578 | H14: 0.07942294689
B15: Total | C15: =SUM(C7:C14) -> 448.7628286 | D15: =SUM(D7:D14) -> 427.7028911 | E15: 404.8377685 | F15: 380.9072993 | G15: 356.462184 | H15: 330.8371207
B16: Meters only | C16: =SUM(C7:C8) -> 426.5407372 | D16: =SUM(D7:D8) -> 406.4446932 | E16: 385.1920533 | F16: 362.8661273 | G16: 339.3357265 | H16: 314.4998077
C19: ='Demand Forecast'!$A$15-1&"/"&RIGHT('Demand Forecast'!$A$15,2) -> 2014/15 | D19: ='Demand Forecast'!$A$16-1&"/"&RIGHT('Demand Forecast'!$A$16,2) -> 2015/16 | E19: ='Demand Forecast'!$A$17-1&"/"&RIGHT('Demand Forecast'!$A$17,2) -> 2016/17 | F19: ='Demand Forecast'!$A$18-1&"/"&RIGHT('Demand Forecast'!$A$18,2) -> 2017/18 | G19: ='Demand Forecast'!$A$19-1&"/"&RIGHT('Demand Forecast'!$A$19,2) -> 2018/19 | H19: ='Demand Forecast'!$A$20-1&"/"&RIGHT('Demand Forecast'!$A$20,2) -> 2019/20
B20: ARR
B21: Return on capital | D21: ='[9]X factor'!E11*10^6 -> 26234674.96 | E21: ='[9]X factor'!F11*10^6 -> 25003511.02 | F21: ='[9]X factor'!G11*10^6 -> 23666815.95 | G21: ='[9]X factor'!H11*10^6 -> 22267840.72 | H21: ='[9]X factor'!I11*10^6 -> 20838779.28 | J21: =NPV(WACC,D21:H21) -> 100488164.9 | K21: =J21/$J$25 -> 0.363003098
B22: Return of capital | D22: ='[9]X factor'!E12*10^6 -> 18841908.26 | E22: ='[9]X factor'!F12*10^6 -> 20011247.12 | F22: ='[9]X factor'!G12*10^6 -> 21250536.79 | G22: ='[9]X factor'!H12*10^6 -> 22253287.14 | H22: ='[9]X factor'!I12*10^6 -> 23414698.12 | J22: =NPV(WACC,D22:H22) -> 88937376.56 | K22: =J22/$J$25 -> 0.3212770703
B23: O&M | D23: ='[9]X factor'!E13*10^6 -> 16681408.7 | E23: ='[9]X factor'!F13*10^6 -> 16657031.08 | F23: ='[9]X factor'!G13*10^6 -> 17026839.78 | G23: ='[9]X factor'!H13*10^6 -> 17690008.54 | H23: ='[9]X factor'!I13*10^6 -> 17951569.8 | J23: =NPV(WACC,D23:H23) -> 72592693.83 | K23: 0.2622335952
B24: Benchmark Tax liability | D24: ='[9]X factor'!E$15*10^6 -> 3216040.885 | E24: ='[9]X factor'!F$15*10^6 -> 3357428.955 | F24: ='[9]X factor'!G$15*10^6 -> 3515095.463 | G24: ='[9]X factor'!H$15*10^6 -> 3664282.976 | H24: ='[9]X factor'!I$15*10^6 -> 3836084.712 | J24: =NPV(WACC,D24:H24) -> 14806302.71 | K24: 0.05348623652
B25: Total unsmoothed revenue - before adjustments | C25: 71375217.95 | D25: =SUM(D21:D24) -> 64974032.81 | E25: =SUM(E21:E24) -> 65029218.17 | F25: =SUM(F21:F24) -> 65459287.98 | G25: =SUM(G21:G24) -> 65875419.37 | H25: =SUM(H21:H24) -> 66041131.92 | J25: =NPV(WACC,D25:H25) -> 276824538
B26: NPV | C26: =NPV(WACC,D25:H25) -> 276824538 | D26: =AVERAGE(E26:H26) -> 0.004083869373 | E26: =E25/D25-1 -> 0.0008493449828 | F26: =F25/E25-1 -> 0.006613485708 | G26: =G25/F25-1 -> 0.006357102297 | H26: =H25/G25-1 -> 0.002515544503
B28: Total smoothed revenue after adjustments | C28: =C25 -> 71375217.95 | D28: =C28*(1-D31)*(1+CPI) -> 62366600.59 | E28: =D28*(1-E31)*(1+CPI) -> 63956948.9 | F28: =E28*(1-F31)*(1+CPI) -> 65587851.1 | G28: =F28*(1-G31)*(1+CPI) -> 67260341.3 | H28: =G28*(1-H31)*(1+CPI) -> 68975480.01 | I28: =H28/H25-1 -> 0.04443212896
B29: NPV | C29: =NPV(WACC,D28:H28) -> 276824538
C30: =C26-C29 -> 0
B31: Adjusted revenue X factors | D31: 0.1479423882 | E31: 0 | F31: 0 | G31: 0 | H31: 0
B33: Smoothed
B34: ROA & Depn (incl Tax & Smoothing) | D34: =(D21+D22)/(D$21+D$22+D$23)*D$28 -> 45520801.02 | E34: =E21+E22+D$34/D$36*(E$28-E$21-E$22-E$23) -> 46682674.91 | F34: =F21+F22+$D$34/$D$36*(F$28-F$21-F$22-F$23) -> 47576825.21 | G34: =G21+G22+$D$34/$D$36*(G$28-G$21-G$22-G$23) -> 48206495.5 | H34: =H21+H22+$D$34/$D$36*(H$28-H$21-H$22-H$23) -> 49195153.26
B35: O&M (incl Tax & Smoothing) | D35: =(D23)/(D$21+D$22+D$23)*D$28 -> 16845799.57 | E35: =E23+D$35/D$36*(E$28-E$21-E$22-E$23) -> 17274273.99 | F35: =F23+$D$35/$D$36*(F$28-F$21-F$22-F$23) -> 18011025.89 | G35: =G23+$D$35/$D$36*(G$28-G$21-G$22-G$23) -> 19053845.8 | H35: =H23+$D$35/$D$36*(H$28-H$21-H$22-H$23) -> 19780326.75
D36: =SUM(D34:D35) -> 62366600.59 | E36: =SUM(E34:E35) -> 63956948.9 | F36: 65587851.1 | G36: 67260341.3 | H36: 68975480.01
B38: Not Smoothed
B39: ROA & Depn | D39: =SUM(D21:D22) -> 45076583.22 | E39: =SUM(E21:E22) -> 45014758.14 | F39: 44917352.74 | G39: 44521127.86 | H39: 44253477.4
B40: O&M (including DRC and Tax) | D40: =SUM(D23:D24) -> 19897449.58 | E40: =SUM(E23:E24) -> 20014460.04 | F40: 20541935.24 | G40: 21354291.51 | H40: 21787654.52
D41: =SUM(D39:D40) -> 64974032.81 | E41: =SUM(E39:E40) -> 65029218.17 | F41: =SUM(F39:F40) -> 65459287.98 | G41: 65875419.37 | H41: 66041131.92
B43: Capital | D43: 28198528.37 | E43: 29212425.83 | F43: 30011356.57 | G43: 28453853.84 | H43: 30203025.34
B44: OPEX | D44: 17587134.07 | E44: 17413324.03 | F44: 17092078 | G44: 17416425.95 | H44: 17635843.44
B45: Multi-Use Assets | D45: 1487015.399 | E45: 1644100.98 | F45: 1846530.411 | G45: 1646718.903 | H45: 1805360.146
B46: Debt Raising Costs | D46: 474976.0921 | E46: 486580.5187 | F46: 497142.6424 | G46: 506322.3807 | H46: 511219.4798
C51: =C6 -> 2014/15 | D51: =D6 -> 2015/16 | E51: 2016/17 | F51: 2017/18 | G51: 2018/19 | H51: 2019/20
B52: CPI index | D52: =1+CPI -> 1.0255 | E52: =D52*(1+CPI) -> 1.05165025 | F52: =E52*(1+CPI) -> 1.078467331 | G52: =F52*(1+CPI) -> 1.105968248 | H52: =G52*(1+CPI) -> 1.134170439
B54: Metering RAB
B55: =B$7 -> Metering - disc
B56: Opening Balance | D56: =C60 -> 262.9623645 | E56: =D60 -> 247.0381641 | F56: =E60 -> 230.4664635 | G56: 213.2331535 | H56: 195.3240442
B57: Nominal capex | D57: =[9]Assets!G$42 -> -4.909195634 | E57: =[9]Assets!H$42 -> -5.034380123 | F57: =[9]Assets!I$42 -> -5.162756816 | G57: =[9]Assets!J$42 -> -5.294407115 | H57: =[9]Assets!K$42 -> -5.429414496
B58: Nominal SL Depn | D58: =[9]Assets!G$88*D$52 -> 17.72054507 | E58: =[9]Assets!H$88*E$52 -> 17.83679362 | F58: =[9]Assets!I$88*F$52 -> 17.94744807 | G58: =[9]Assets!J$88*G$52 -> 18.05214752 | H58: =[9]Assets!K$88*H$52 -> 18.15051632
B59: Inflation on Opening Opening Balance | D59: =D56*CPI -> 6.705540295 | E59: =E56*CPI -> 6.299473185 | F59: =F56*CPI -> 5.87689482 | G59: =G56*CPI -> 5.437445413 | H59: =H56*CPI -> 4.980763128
B60: Closing Balance | C60: =[9]Input!J$7 -> 262.9623645 | D60: =D56+D57-D58+D59 -> 247.0381641 | E60: =E56+E57-E58+E59 -> 230.4664635 | F60: 213.2331535 | G60: 195.3240442 | H60: 176.7248766
B62: =B$8 -> Metering - electronic
B63: Opening Balance | D63: =C67 -> 163.5783727 | E63: =D67 -> 159.4065291 | F63: =E67 -> 154.7255897 | G63: 149.6329738 | H63: 144.0116822
B64: Nominal capex | D64: =[9]Assets!G$43 -> 2.680150404 | E64: =[9]Assets!H$43 -> 2.741762341 | F64: =[9]Assets!I$43 -> 2.929827866 | G64: =[9]Assets!J$43 -> 3.036499107 | H64: =[9]Assets!K$43 -> 3.090050381
B65: Nominal SL Depn | D65: =[9]Assets!G$101*D$52 -> 11.02324255 | E65: =[9]Assets!H$101*E$52 -> 11.48756819 | F65: =[9]Assets!I$101*F$52 -> 11.96794633 | G65: =[9]Assets!J$101*G$52 -> 12.47343152 | H65: =[9]Assets!K$101*H$52 -> 12.99909935
B66: Inflation on Opening Opening Balance | D66: =D63*CPI -> 4.171248505 | E66: =E63*CPI -> 4.064866492 | F66: =F63*CPI -> 3.945502538 | G66: =G63*CPI -> 3.815640832 | H66: =H63*CPI -> 3.672297897
B67: Closing Balance | C67: =[9]Input!J$8 -> 163.5783727 | D67: =D63+D64-D65+D66 -> 159.4065291 | E67: =E63+E64-E65+E66 -> 154.7255897 | F67: =F63+F64-F65+F66 -> 149.6329738 | G67: =G63+G64-G65+G66 -> 144.0116822 | H67: =H63+H64-H65+H66 -> 137.7749312
B69: =B$9 -> Office Equipment & Furniture
B70: Opening Balance | D70: =C74 -> -0.1244369644 | E70: =D74 -> -0.07770241362 | F70: =E74 -> -0.02773710117 | G70: 0.00975889104 | H70: 0.009874403699
B71: Nominal capex | D71: =[9]Assets!G$44 -> 0.003540772616 | E71: =[9]Assets!H$44 -> 0.004916169986 | F71: =[9]Assets!I$44 -> 0.002777824475 | G71: =[9]Assets!J$44 -> 0.001557712078 | H71: =[9]Assets!K$44 -> 0.001597829329
B72: Nominal SL Depn | D72: =[9]Assets!G$114*D$52 -> -0.04636692073 | E72: =[9]Assets!H$114*E$52 -> -0.04703055402 | F72: =[9]Assets!I$114*F$52 -> -0.03542546381 | G72: =[9]Assets!J$114*G$52 -> 0.001691051141 | H72: =[9]Assets!K$114*H$52 -> 0.001962377765
B73: Inflation on Opening Opening Balance | D73: =D70*CPI -> -0.003173142592 | E73: =E70*CPI -> -0.001981411547 | F73: =F70*CPI -> -0.0007072960798 | G73: =G70*CPI -> 0.0002488517215 | H73: =H70*CPI -> 0.0002517972943
B74: Closing Balance | C74: =[9]Input!J$9 -> -0.1244369644 | D74: =D70+D71-D72+D73 -> -0.07770241362 | E74: =E70+E71-E72+E73 -> -0.02773710117 | F74: =F70+F71-F72+F73 -> 0.00975889104 | G74: =G70+G71-G72+G73 -> 0.009874403699 | H74: =H70+H71-H72+H73 -> 0.009761652557
B76: =B$10 -> Motor Vehicles
B77: Opening Balance | D77: =C81 -> 4.016483622 | E77: =D81 -> 3.453844639 | F77: =E81 -> 2.869693494 | G77: 2.189918162 | H77: 1.486092954
B78: Nominal capex | D78: =[9]Assets!G$45 -> -0.009534428691 | E78: =[9]Assets!H$45 -> -0.00106739802 | F78: =[9]Assets!I$45 -> -0.06480258809 | G78: =[9]Assets!J$45 -> -0.06133789205 | H78: =[9]Assets!K$45 -> -0.03480705268
B79: Nominal SL Depn | D79: =[9]Assets!G$127*D$52 -> 0.6555248866 | E79: =[9]Assets!H$127*E$52 -> 0.6711567849 | F79: =[9]Assets!I$127*F$52 -> 0.6881499285 | G79: =[9]Assets!J$127*G$52 -> 0.6983302291 | H79: =[9]Assets!K$127*H$52 -> 0.7091640348
B80: Inflation on Opening Opening Balance | D80: =D77*CPI -> 0.1024203324 | E80: =E77*CPI -> 0.08807303829 | F80: =F77*CPI -> 0.0731771841 | G80: =G77*CPI -> 0.05584291312 | H80: =H77*CPI -> 0.03789537032
B81: Closing Balance | C81: =[9]Input!J$10 -> 4.016483622 | D81: =D77+D78-D79+D80 -> 3.453844639 | E81: =E77+E78-E79+E80 -> 2.869693494 | F81: =F77+F78-F79+F80 -> 2.189918162 | G81: =G77+G78-G79+G80 -> 1.486092954 | H81: =H77+H78-H79+H80 -> 0.7800172364
B83: =B$11 -> Plant & Equipment
B84: Opening Balance | D84: =C88 -> 1.189098925 | E84: =D88 -> 1.024630168 | F84: =E88 -> 0.8399295789 | G84: 0.6354801681 | H84: 0.4119493577
B85: Nominal capex | D85: =[9]Assets!G$46 -> 0.04762040282 | E85: =[9]Assets!H$46 -> 0.04498808127 | F85: =[9]Assets!I$46 -> 0.04329719644 | G85: =[9]Assets!J$46 -> 0.04286119543 | H85: =[9]Assets!K$46 -> 0.04396618167
B86: Nominal SL Depn | D86: =[9]Assets!G$140*D$52 -> 0.2424111828 | E86: =[9]Assets!H$140*E$52 -> 0.2558167395 | F86: =[9]Assets!I$140*F$52 -> 0.2691648115 | G86: =[9]Assets!J$140*G$52 -> 0.2825967501 | H86: =[9]Assets!K$140*H$52 -> 0.2963050613
B87: Inflation on Opening Opening Balance | D87: =D84*CPI -> 0.0303220226 | E87: =E84*CPI -> 0.02612806928 | F87: =F84*CPI -> 0.02141820426 | G87: =G84*CPI -> 0.01620474429 | H87: =H84*CPI -> 0.01050470862
B88: Closing Balance | C88: =[9]Input!J$11 -> 1.189098925 | D88: =D84+D85-D86+D87 -> 1.024630168 | E88: =E84+E85-E86+E87 -> 0.8399295789 | F88: =F84+F85-F86+F87 -> 0.6354801681 | G88: =G84+G85-G86+G87 -> 0.4119493577 | H88: =H84+H85-H86+H87 -> 0.1701151867
B90: =B$12 -> Buildings
B91: Opening Balance | D91: =C95 -> 9.842926682 | E91: =D95 -> 9.914633535 | F91: =E95 -> 9.728667348 | G91: 9.437333281 | H91: 9.432016725
B92: Nominal capex | D92: =[9]Assets!G$47 -> 0.1171612596 | E92: =[9]Assets!H$47 -> -0.1317771319 | F92: =[9]Assets!I$47 -> -0.2279524998 | G92: =[9]Assets!J$47 -> 0.06759219457 | H92: =[9]Assets!K$47 -> 0.06991923217
B93: Nominal SL Depn | D93: =[9]Assets!G$153*D$52 -> 0.2964490376 | E93: =[9]Assets!H$153*E$52 -> 0.3070122098 | F93: =[9]Assets!I$153*F$52 -> 0.311462585 | G93: =[9]Assets!J$153*G$52 -> 0.3135607487 | H93: =[9]Assets!K$153*H$52 -> 0.3232894426
B94: Inflation on Opening Opening Balance | D94: =D91*CPI -> 0.2509946304 | E94: =E91*CPI -> 0.2528231551 | F94: =F91*CPI -> 0.2480810174 | G94: =G91*CPI -> 0.2406519987 | H94: =H91*CPI -> 0.2405164265
B95: Closing Balance | C95: =[9]Input!J$12 -> 9.842926682 | D95: =D91+D92-D93+D94 -> 9.914633535 | E95: =E91+E92-E93+E94 -> 9.728667348 | F95: =F91+F92-F93+F94 -> 9.437333281 | G95: =G91+G92-G93+G94 -> 9.432016725 | H95: =H91+H92-H93+H94 -> 9.419162941
B97: =B$13 -> Land
B98: Opening Balance | D98: =C102 -> 6.034391351 | E98: =D102 -> 6.027129631 | F98: =E102 -> 5.661693435 | G98: 5.562787237 | H98: 5.704638312
B99: Nominal capex | D99: =[9]Assets!G$48 -> -0.1611386989 | E99: =[9]Assets!H$48 -> -0.519128002 | F99: =[9]Assets!I$48 -> -0.2432793804 | G99: =[9]Assets!J$48 -> 0 | H99: =[9]Assets!K$48 -> 0.02872638309
B100: Nominal SL Depn | D100: =[9]Assets!G$166*D$52 -> 0 | E100: =[9]Assets!H$166*E$52 -> 0 | F100: =[9]Assets!I$166*F$52 -> 0 | G100: =[9]Assets!J$166*G$52 -> 0 | H100: =[9]Assets!K$166*H$52 -> 0
B101: Inflation on Opening Opening Balance | D101: =D98*CPI -> 0.1538769794 | E101: =E98*CPI -> 0.1536918056 | F101: =F98*CPI -> 0.1443731826 | G101: =G98*CPI -> 0.1418510745 | H101: =H98*CPI -> 0.1454682769
B102: Closing Balance | C102: =[9]Input!J$13 -> 6.034391351 | D102: =D98+D99-D100+D101 -> 6.027129631 | E102: =E98+E99-E100+E101 -> 5.661693435 | F102: =F98+F99-F100+F101 -> 5.562787237 | G102: =G98+G99-G100+G101 -> 5.704638312 | H102: =H98+H99-H100+H101 -> 5.878832972
B104: =B$14 -> IT Systems
B105: Opening Balance | D105: =C109 -> 1.263627725 | E105: =D109 -> 0.9156623852 | F105: =E109 -> 0.5734684606 | G105: 0.2058942924 | H105: 0.08188581578
B106: Nominal capex | D106: =[9]Assets!G$49 -> 0.01336674222 | E106: =[9]Assets!H$49 -> 0.04081054349 | F106: =[9]Assets!I$49 -> 0.04295601274 | G106: =[9]Assets!J$49 -> 0.01540666407 | H106: =[9]Assets!K$49 -> 0.01959627384
B107: Nominal SL Depn | D107: =[9]Assets!G$179*D$52 -> 0.393554589 | E107: =[9]Assets!H$179*E$52 -> 0.4063538589 | F107: =[9]Assets!I$179*F$52 -> 0.4251536267 | G107: =[9]Assets!J$179*G$52 -> 0.1446654451 | H107: =[9]Assets!K$179*H$52 -> 0.02414723104
B108: Inflation on Opening Opening Balance | D108: =D105*CPI -> 0.03222250699 | E108: =E105*CPI -> 0.02334939082 | F108: =F105*CPI -> 0.01462344575 | G108: =G105*CPI -> 0.005250304456 | H108: =H105*CPI -> 0.002088088303
B109: Closing Balance | C109: =[9]Input!J$14 -> 1.263627725 | D109: =D105+D106-D107+D108 -> 0.9156623852 | E109: =E105+E106-E107+E108 -> 0.5734684606 | F109: =F105+F106-F107+F108 -> 0.2058942924 | G109: =G105+G106-G107+G108 -> 0.08188581578 | H109: =H105+H106-H107+H108 -> 0.07942294689
B112: Total
B113: Opening Balance | D113: =C117 -> 448.7628286 | E113: =D117 -> 427.7028911 | F113: =E117 -> 404.8377685 | G113: 380.9072993 | H113: 356.462184
B114: Nominal capex | D114: =SUM(D57,D64,D71,D78,D85,D92,D99,D106) -> -2.218029181 | E114: -2.853875519 | F114: -2.679932385 | G114: -2.191828133 | H114: -2.210365267
B115: Nominal SL Depn | D115: =SUM(D58,D65,D72,D79,D86,D93,D100,D107) -> 30.28536039 | E115: 30.91767085 | F115: 31.57389989 | G115: 31.96642327 | H115: 32.50448382
B116: Inflation on Opening Opening Balance | D116: =D113*CPI -> 11.44345213 | E116: =E113*CPI -> 10.90642372 | F116: =F113*CPI -> 10.3233631 | G116: =G113*CPI -> 9.713136132 | H116: =H113*CPI -> 9.089785693
B117: Closing Balance | C117: =SUM(C60,C67,C74,C81,C88,C95,C102,C109) -> 448.7628286 | D117: =D113+D114-D115+D116 -> 427.7028911 | E117: =E113+E114-E115+E116 -> 404.8377685 | F117: =F113+F114-F115+F116 -> 380.9072993 | G117: =G113+G114-G115+G116 -> 356.462184 | H117: =H113+H114-H115+H116 -> 330.8371207
B118: Check | C118: =C117-C119 -> 0 | D118: =D117-D119 -> 0 | E118: 0 | F118: 0 | G118: 0 | H118: 0
B119: Nominal Residual RAB (end period) - PTRM | C119: =[9]Assets!F$474 -> 448.7628286 | D119: =[9]Assets!G$474 -> 427.7028911 | E119: =[9]Assets!H$474 -> 404.8377685 | F119: =[9]Assets!I$474 -> 380.9072993 | G119: =[9]Assets!J$474 -> 356.462184 | H119: =[9]Assets!K$474 -> 330.8371207

Sheet Demand Forecast
A1: Forecast of NTCs for 2015 -2020
A3: Actual Average NTC's
A4: Financial Year | B4: Primary | C4: Growth | D4: % Growth | E4: % of Total | F4: CL | G4: Growth | H4: % Growth | I4: % of Total | J4: FiT | K4: Growth | L4: % Growth | M4: % of Total | N4: Total | O4: Growth | P4: %
A5: 2012 Avg | B5: =AVERAGE('PIVOT NMI''s'!H7:H18) -> 1336804.25 | E5: =IF($N5=0,0,B5/$N5) -> 0.6133464835 | F5: =AVERAGE('PIVOT NMI''s'!K7:K18) -> 726987.4167 | I5: =IF($N5=0,0,F5/$N5) -> 0.3335530805 | J5: =AVERAGE('PIVOT NMI''s'!B7:B18) -> 115733.75 | M5: =IF($N5=0,0,J5/$N5) -> 0.05310043605 | N5: =J5+F5+B5 -> 2179525.417
A6: 2013 Avg | B6: =AVERAGE('PIVOT NMI''s'!H20:H31) -> 1350042.167 | C6: =B6-B5 -> 13237.91667 | D6: =C6/B5 -> 0.009902659022 | E6: =IF($N6=0,0,B6/$N6) -> 0.5931089338 | F6: =AVERAGE('PIVOT NMI''s'!K20:K31) -> 730678.8333 | G6: =F6-F5 -> 3691.416667 | H6: =G6/F5 -> 0.005077689905 | I6: =IF($N6=0,0,F6/$N6) -> 0.3210063763 | J6: =AVERAGE('PIVOT NMI''s'!B20:B31) -> 195491.8333 | K6: =J6-J5 -> 79758.08333 | L6: =K6/J5 -> 0.6891514647 | M6: =IF($N6=0,0,J6/$N6) -> 0.0858846899 | N6: =J6+F6+B6 -> 2276212.833 | O6: =N6-N5 -> 96687.41667 | P6: =N6/N5-1 -> 0.04436168348
A7: 2014 Avg | B7: =AVERAGE('PIVOT NMI''s'!H33:H44) -> 1364633.333 | C7: =B7-B6 -> 14591.16667 | D7: =C7/B6 -> 0.01080793402 | E7: =IF($N7=0,0,B7/$N7) -> 0.5823463384 | F7: =AVERAGE('PIVOT NMI''s'!K33:K44) -> 733470.8333 | G7: =F7-F6 -> 2792 | H7: =G7/F6 -> 0.003821104256 | I7: =IF($N7=0,0,F7/$N7) -> 0.3130027999 | J7: =AVERAGE('PIVOT NMI''s'!B33:B44) -> 245232.1667 | K7: =J7-J6 -> 49740.33333 | L7: =K7/J6 -> 0.2544368861 | M7: =IF($N7=0,0,J7/$N7) -> 0.1046508618 | N7: =J7+F7+B7 -> 2343336.333 | O7: =N7-N6 -> 67123.5 | P7: =N7/N6-1 -> 0.02948911412
A10: Average growth | D10: =AVERAGE(D5:D8) -> 0.01035529652 | E10: =AVERAGE(E5:E8) -> 0.5962672519 | H10: =AVERAGE(H5:H8) -> 0.004449397081 | I10: =AVERAGE(I5:I8) -> 0.3225207522 | L10: =AVERAGE(L5:L8) -> 0.4717941754 | M10: =AVERAGE(M5:M8) -> 0.0812119959 | P10: =AVERAGE(P5:P8) -> 0.0369253988
A11: Applicable growth
A13: Forecast NTCs
A14: FY Average | B14: Primary | C14: Growth | D14: % Growth | F14: CL | G14: Growth | H14: % Growth | J14: FiT | K14: Growth | L14: % Growth | N14: Total | P14: check
A15: 2015 | B15: =B7*(1+D10) -> 1378764.516 | C15: =B15-B7 -> 14131.18281 | D15: =D10 -> 0.01035529652 | E15: =B15/N15 -> 0.5674243375 | F15: =F7*(1+H10) -> 736734.3363 | G15: =F15-F7 -> 3263.502985 | H15: =G15/F15 -> 0.004429687641 | I15: =F15/N15 -> 0.3031997036 | J15: =J7+K15 -> 288232.1667 | K15: 43000 | L15: =K15/J7 -> 0.1753440447 | M15: =J15/N15 -> 0.1186206522 | N15: =N7*(1+$P$10) -> 2429864.962 | O15: =N15-N7 -> 86528.62863 | P15: =N15/N7-1 -> 0.0369253988
A16: =A15+1 -> 2016 | B16: =B15*(1+$D$10) -> 1393042.032 | C16: =B16-B15 -> 14277.5154 | E16: 0.5528846968 | F16: =F15*(1+$H$10) -> 740012.3599 | G16: =F16-F15 -> 3278.023605 | I16: 0.2937036356 | J16: =J15+K16 -> 323232.1667 | K16: 35000 | L16: =K16/J15 -> 0.121429889 | M16: 0.1282876715 | N16: =N15*(1+$P$10) -> 2519588.695 | O16: =N16-N15 -> 89723.73275 | P16: =N16/N15-1 -> 0.0369253988
A17: 2017 | B17: =B16*(1+$D$10) -> 1407467.395 | C17: =B17-B16 -> 14425.36331 | E17: 0.5387176189 | F17: =F16*(1+$H$10) -> 743304.9688 | G17: =F17-F16 -> 3292.608834 | I17: 0.2845049799 | J17: =J16+K17 -> 353232.1667 | K17: 30000 | L17: =K17/J16 -> 0.09281254496 | M17: 0.1352019894 | N17: 2612625.512 | O17: =N17-N16 -> 93036.81736 | P17: 0.0369253988
A18: 2018 | B18: 1422042.137 | C18: 14574.74222 | E18: 0.5249135571 | F18: =F17*(1+$H$10) -> 746612.2277 | G18: =F18-F17 -> 3307.258958 | I18: 0.2755944216 | J18: =J17+K18 -> 382232.1667 | K18: 29000 | L18: 0.08209897834 | M18: 0.1410920542 | N18: 2709097.751 | O18: 96472.23894 | P18: 0.0369253988
A19: 2019 | B19: 1436767.805 | C19: 14725.668 | E19: 0.5114632097 | F19: =F18*(1+$H$10) -> 749934.202 | G19: 3321.974266 | I19: 0.2669629377 | J19: 409232.1667 | K19: 27000 | L19: 0.07063769707 | M19: 0.1456792091 | N19: 2809132.266 | O19: 100034.5148 | P19: 0.0369253988
A20: 2020 | B20: 1451645.962 | C20: 14878.15666 | E20: 0.498357513 | F20: =F19*(1+$H$10) -> 753270.957 | G20: 3336.755049 | I20: 0.2586017876 | J20: 434232.1667 | K20: 25000 | L20: 0.06109001695 | M20: 0.1490741326 | N20: 2912860.595 | O20: 103728.3292 | P20: 0.0369253988
A22: * no churn incorporated on the basis that as customers churn
B23: The exit fee will recover return of assets
B24: the rest of the opex costs will disappear as the meter is removed
B25: thus as meters move revenue will decrease but costs will decrease on a proportional basis.
A27: Actual Average NTC's
A28: EndFinancial Year | B28: Primary | C28: Growth | D28: % Growth | E28: % | F28: CL | G28: Growth | H28: % Growth | I28: % | J28: FiT | K28: Growth | L28: % Growth | M28: % | N28: Total | O28: Growth | P28: % Growth
A29: 2012 Closing | B29: =GETPIVOTDATA("NMI No",'PIVOT NMI''s'!$A$3,"Group","SAC - Non Demand","MONTH","JUN","FIN YEAR","1112") -> 1343590 | E29: =IF($N29=0,0,B29/$N29) -> 0.6050176855 | F29: =GETPIVOTDATA("NMI No",'PIVOT NMI''s'!$A$3,"Group","CL","MONTH","JUN","FIN YEAR","1112") -> 728844 | I29: =IF($N29=0,0,F29/$N29) -> 0.3281979696 | J29: =GETPIVOTDATA("NMI No",'PIVOT NMI''s'!$A$3,"Group","Photovoltaic","MONTH","JUN","FIN YEAR","1112") -> 148311 | M29: =IF($N29=0,0,J29/$N29) -> 0.06678434489 | N29: =J29+F29+B29 -> 2220745
A30: 2013 Closing | B30: =GETPIVOTDATA("NMI No",'PIVOT NMI''s'!$A$3,"Group","SAC - Non Demand","MONTH","JUN","FIN YEAR","1213") -> 1356079 | C30: =B30-B29 -> 12489 | D30: =C30/B29 -> 0.009295246318 | E30: =IF($N30=0,0,B30/$N30) -> 0.5870085605 | F30: =GETPIVOTDATA("NMI No",'PIVOT NMI''s'!$A$3,"Group","CL","MONTH","JUN","FIN YEAR","1213") -> 731862 | G30: =F30-F29 -> 3018 | H30: =G30/F29 -> 0.004140803793 | I30: =IF($N30=0,0,F30/$N30) -> 0.3168025307 | J30: =GETPIVOTDATA("NMI No",'PIVOT NMI''s'!$A$3,"Group","Photovoltaic","MONTH","JUN","FIN YEAR","1213") -> 222211 | K30: =J30-J29 -> 73900 | L30: =K30/J29 -> 0.4982772687 | M30: =IF($N30=0,0,J30/$N30) -> 0.09618890878 | N30: =J30+F30+B30 -> 2310152 | O30: =N30-N29 -> 89407 | P30: =O30/N29 -> 0.04025991278
A31: 2014 Closing | B31: =GETPIVOTDATA("NMI No",'PIVOT NMI''s'!$A$3,"Group","SAC - Non Demand","MONTH","JUN","FIN YEAR","1314") -> 1372607 | C31: =B31-B30 -> 16528 | D31: =C31/B30 -> 0.01218808049 | E31: =IF($N31=0,0,B31/$N31) -> 0.5796766227 | F31: =GETPIVOTDATA("NMI No",'PIVOT NMI''s'!$A$3,"Group","CL","MONTH","JUN","FIN YEAR","1314") -> 734274 | G31: =F31-F30 -> 2412 | H31: =G31/F30 -> 0.003295703288 | I31: =IF($N31=0,0,F31/$N31) -> 0.3100971162 | J31: =GETPIVOTDATA("NMI No",'PIVOT NMI''s'!$A$3,"Group","Photovoltaic","MONTH","JUN","FIN YEAR","1314") -> 261003 | K31: =J31-J30 -> 38792 | L31: =K31/J30 -> 0.1745728159 | M31: =IF($N31=0,0,J31/$N31) -> 0.1102262611 | N31: =J31+F31+B31 -> 2367884 | O31: =N31-N30 -> 57732 | P31: =O31/N30 -> 0.02499056339
A34: Average growth | D34: =AVERAGE(D29:D32) -> 0.0107416634 | E34: =AVERAGE(E29:E32) -> 0.5905676229 | H34: =AVERAGE(H29:H32) -> 0.003718253541 | I34: =AVERAGE(I29:I32) -> 0.3183658722 | L34: =AVERAGE(L29:L32) -> 0.3364250423 | M34: =AVERAGE(M29:M32) -> 0.09106650492 | P34: =AVERAGE(P29:P32) -> 0.03262523808
A36: Forecast NTCs
A37: End Financial Year | B37: Primary | C37: Growth | D37: % Growth | E37: % | F37: CL | G37: Growth | H37: % Growth | I37: % | J37: FiT | K37: Growth | L37: % Growth | M37: % | N37: Total | P37: check
A38: 2015 | B38: =B31*(1+D34) -> 1387351.082 | C38: =B38-B31 -> 14744.08238 | D38: =C38/B31 -> 0.0107416634 | E38: =B38/N38 -> 0.5713123483 | F38: =F31*(1+H34) -> 737004.2169 | G38: =F38-F31 -> 2730.2169 | H38: =G38/F31 -> 0.003718253541 | I38: =F38/N38 -> 0.3034989594 | J38: =J31+K38 -> 304003 | K38: 43000 | L38: =K38/J31 -> 0.1647490642 | M38: =J38/N38 -> 0.1251886923 | N38: =B38+F38+J38 -> 2428358.299 | P38: =N38/N31-1 -> 0.02553938423
A39: =A38+1 -> 2016 | B39: =B38*(1+$D$34) -> 1402253.541 | C39: =B39-B38 -> 14902.45835 | E39: 0.5651966563 | F39: =F38*(1+$H$34) -> 739744.5854 | G39: =F39-F38 -> 2740.368539 | I39: 0.2981637443 | J39: =J38+K39 -> 339003 | K39: 35000 | M39: =J39/N39 -> 0.1366395994 | N39: =B39+F39+J39 -> 2481001.126 | P39: =N39/N38-1 -> 0.0216783606
A40: 2017 | B40: =B39*(1+$D$34) -> 1417316.076 | C40: =B40-B39 -> 15062.53554 | E40: 0.5604666667 | F40: =F39*(1+$H$34) -> 742495.1434 | G40: =F40-F39 -> 2750.557924 | I40: 0.2936139546 | J40: =J39+K40 -> 369003 | K40: 30000 | M40: 0.1459193788 | N40: 2528814.22 | P40: 0.01927169358
A41: 2018 | B41: =B40*(1+$D$34) -> 1432540.408 | C41: 15224.33223 | E41: 0.5561537298 | F41: 745255.9286 | G41: =F41-F40 -> 2760.785196 | I41: 0.2893299637 | J41: 398003 | K41: 29000 | M41: 0.1545163066 | N41: 2575799.337 | P41: 0.01857990083
A42: 2019 | B42: 1447928.275 | C42: 15387.86688 | E42: 0.5524423264 | F42: 748026.9791 | G42: 2771.050495 | I42: 0.2854020959 | J42: 425003 | K42: 27000 | M42: 0.1621555777 | N42: 2620958.254 | P42: 0.01753200132
A43: 2020 | B43: 1463481.434 | C43: 15553.15817 | E43: 0.5492945265 | F43: 750808.333 | G43: 2781.353964 | I43: 0.2818039903 | J43: 450003 | K43: 25000 | M43: 0.1689014832 | N43: 2664292.767 | P43: 0.01653384294
A45: Forecast NTCs
A46: Average | B46: Primary | C46: Growth | D46: % Growth | E46: % | F46: CL | G46: Growth | H46: % Growth | I46: % | J46: FiT | K46: Growth | L46: % Growth | M46: % | N46: Total | P46: check
A47: 2015 | B47: =(B38-B31)/2+B31 -> 1379979.041 | E47: =B47/N47 -> 0.5262693207 | F47: =(F38-F31)/2+F31 -> 735639.1085 | I47: =F47/N47 -> 0.2805436042 | J47: =(J38-J31)/2+J31 -> 282503 | M47: =J47/N47 -> 0.1077354492 | N47: =N40*(1+$P$10) -> 2622191.693 | P47: =N47/N40-1 -> 0.0369253988
A48: =A47+1 -> 2016 | B48: =(B39-B38)/2+B38 -> 1394802.312 | C48: =B48-B47 -> 14823.27036 | D48: =C48/B47 -> 0.0107416634 | E48: 0.5129803255 | F48: =(F39-F38)/2+F38 -> 738374.4012 | G48: =F48-F47 -> 2735.29272 | H48: =G48/F47 -> 0.003718253541 | I48: 0.2715593009 | J48: =(J39-J38)/2+J38 -> 321503 | K48: =J48-J47 -> 39000 | L48: =K48/J47 -> 0.1380516313 | M48: 0.1182423575 | N48: =N47*(1+$P$10) -> 2719017.167 | P48: =N48/N47-1 -> 0.0369253988
A49: 2017 | B49: =(B40-B39)/2+B39 -> 1409784.808 | C49: =B49-B48 -> 14982.49694 | E49: 0.500026895 | F49: =(F40-F39)/2+F39 -> 741119.8644 | G49: =F49-F48 -> 2745.463232 | I49: 0.2628627166 | J49: =(J40-J39)/2+J39 -> 354003 | K49: =J49-J48 -> 32500 | M49: 0.1255588937 | N49: 2819417.96 | P49: 0.0369253988
A50: 2018 | B50: 1424928.242 | C50: 15143.43388 | E50: 0.4874005557 | F50: =(F41-F40)/2+F40 -> 743875.536 | G50: 2755.67156 | I50: 0.2544446372 | J50: =(J41-J40)/2+J40 -> 383503 | K50: 29500 | M50: 0.1311782374 | N50: 2923526.093 | P50: 0.0369253988
A51: 2019 | B51: 1440234.342 | C51: 15306.09955 | E51: 0.4750930482 | F51: =(F42-F41)/2+F41 -> 746641.4538 | G51: 2765.917846 | I51: 0.2462961435 | J51: =(J42-J41)/2+J41 -> 411503 | K51: 28000 | M51: 0.1357433363 | N51: 3031478.46 | P51: 0.0369253988
A52: 2020 | B52: 1455704.854 | C52: 15470.51252 | E52: 0.4630963214 | F52: =(F43-F42)/2+F42 -> 749417.656 | G52: 2776.202229 | I52: 0.2384086023 | J52: =(J43-J42)/2+J42 -> 437503 | K52: 26000 | M52: 0.1391807064 | N52: 3143417.011 | P52: 0.0369253988

Sheet PIVOT NMI's
A3: Sum of NMI No | B3: Column Labels
B4: Photovoltaic | C4: SAC - Non Demand | H4: SAC - Non Demand Total | I4: CL | K4: CL Total | L4: Grand Total
A5: Row Labels | C5: 7600 | D5: 8400 | E5: 8500 | F5: 8800 | G5: 8900 | I5: 9000 | J5: 9100
A6: 1112
A7: JUL | B7: 83543 | D7: 1216105 | E7: 98961 | F7: 15162 | H7: 1330228 | I7: 214689 | J7: 511181 | K7: 725870 | L7: 2139641
A8: AUG | B8: 91647 | D8: 1217679 | E8: 99002 | F8: 15111 | H8: 1331792 | I8: 214449 | J8: 511537 | K8: 725986 | L8: 2149425
A9: SEP | B9: 98076 | D9: 1218940 | E9: 99110 | F9: 15041 | H9: 1333091 | I9: 214234 | J9: 511922 | K9: 726156 | L9: 2157323
A10: OCT | B10: 106435 | D10: 1219720 | E10: 99166 | F10: 15043 | H10: 1333929 | I10: 214132 | J10: 512119 | K10: 726251 | L10: 2166615
A11: NOV | B11: 110735 | D11: 1221304 | E11: 99162 | F11: 15023 | H11: 1335489 | I11: 214052 | J11: 512451 | K11: 726503 | L11: 2172727
A12: DEC | B12: 113788 | D12: 1222025 | E12: 99119 | F12: 15008 | H12: 1336152 | I12: 213957 | J12: 512703 | K12: 726660 | L12: 2176600
A13: JAN | B13: 117616 | D13: 1222681 | E13: 99136 | F13: 14990 | H13: 1336807 | I13: 213911 | J13: 512959 | K13: 726870 | L13: 2181293
A14: FEB | B14: 121452 | D14: 1223975 | E14: 99252 | F14: 14926 | H14: 1338153 | I14: 213784 | J14: 513257 | K14: 727041 | L14: 2186646
A15: MAR | B15: 126377 | D15: 1225179 | E15: 99303 | F15: 14923 | H15: 1339405 | I15: 213725 | J15: 513739 | K15: 727464 | L15: 2193246
A16: APR | B16: 131241 | D16: 1226357 | E16: 99302 | F16: 14918 | H16: 1340577 | I16: 213671 | J16: 514062 | K16: 727733 | L16: 2199551
A17: MAY | B17: 139584 | D17: 1228204 | E17: 99322 | F17: 14912 | H17: 1342438 | I17: 213679 | J17: 514792 | K17: 728471 | L17: 2210493
A18: JUN | B18: 148311 | D18: 1229433 | E18: 99320 | F18: 14837 | H18: 1343590 | I18: 213524 | J18: 515320 | K18: 728844 | L18: 2220745
A19: 1213
A20: JUL | B20: 157849 | D20: 1230924 | E20: 98438 | F20: 14268 | G20: 1 | H20: 1343631 | I20: 213302 | J20: 515838 | K20: 729140 | L20: 2230620
A21: AUG | B21: 167385 | D21: 1232077 | E21: 98364 | F21: 14231 | G21: 2 | H21: 1344674 | I21: 213229 | J21: 516314 | K21: 729543 | L21: 2241602
A22: SEP | B22: 175458 | D22: 1232973 | E22: 98327 | F22: 14188 | G22: 3 | H22: 1345491 | I22: 213202 | J22: 516612 | K22: 729814 | L22: 2250763
A23: OCT | B23: 184155 | D23: 1234598 | E23: 98717 | F23: 14486 | G23: 5 | H23: 1347806 | I23: 213270 | J23: 516871 | K23: 730141 | L23: 2262102
A24: NOV | B24: 192007 | D24: 1235911 | E24: 98755 | F24: 14512 | G24: 9 | H24: 1349187 | I24: 213363 | J24: 517103 | K24: 730466 | L24: 2271660
A25: DEC | B25: 197320 | D25: 1237019 | E25: 98800 | F25: 14530 | G25: 11 | H25: 1350360 | I25: 213452 | J25: 517439 | K25: 730891 | L25: 2278571
A26: JAN | B26: 202555 | D26: 1237334 | E26: 98795 | F26: 14529 | G26: 17 | H26: 1350675 | I26: 213491 | J26: 517516 | K26: 731007 | L26: 2284237
A27: FEB | B27: 206666 | D27: 1238302 | E27: 98816 | F27: 14551 | G27: 20 | H27: 1351689 | I27: 213481 | J27: 517574 | K27: 731055 | L27: 2289410
A28: MAR | B28: 209574 | D28: 1239110 | E28: 98832 | F28: 14542 | G28: 21 | H28: 1352505 | I28: 213522 | J28: 517689 | K28: 731211 | L28: 2293290
A29: APR | B29: 212687 | D29: 1240086 | E29: 98821 | F29: 14550 | G29: 25 | H29: 1353482 | I29: 213539 | J29: 517844 | K29: 731383 | L29: 2297552
A30: MAY | B30: 218035 | D30: 1241451 | E30: 98830 | F30: 14551 | G30: 95 | H30: 1354927 | I30: 213573 | J30: 518060 | K30: 731633 | L30: 2304595
A31: JUN | B31: 222211 | D31: 1242547 | E31: 98884 | F31: 14552 | G31: 96 | H31: 1356079 | I31: 213508 | J31: 518354 | K31: 731862 | L31: 2310152
A32: 1314
A33: JUL | B33: 228856 | D33: 1243991 | E33: 98903 | F33: 14524 | G33: 100 | H33: 1357518 | I33: 213473 | J33: 518744 | K33: 732217 | L33: 2318591
A34: AUG | B34: 233821 | D34: 1245430 | E34: 98922 | F34: 14426 | G34: 105 | H34: 1358883 | I34: 213521 | J34: 518984 | K34: 732505 | L34: 2325209
A35: SEP | B35: 236565 | D35: 1246737 | E35: 98978 | F35: 14417 | G35: 116 | H35: 1360248 | I35: 213612 | J35: 519177 | K35: 732789 | L35: 2329602
A36: OCT | B36: 239135 | C36: 1 | D36: 1248082 | E36: 99050 | F36: 14420 | G36: 130 | H36: 1361683 | I36: 213743 | J36: 519323 | K36: 733066 | L36: 2333884
A37: NOV | B37: 241389 | C37: 1 | D37: 1249149 | E37: 99080 | F37: 14411 | G37: 138 | H37: 1362779 | I37: 213933 | J37: 519347 | K37: 733280 | L37: 2337448
A38: DEC | B38: 243867 | C38: 1 | D38: 1250422 | E38: 99124 | F38: 14405 | G38: 141 | H38: 1364093 | I38: 214139 | J38: 519427 | K38: 733566 | L38: 2341526
A39: JAN | B39: 245970 | C39: 1 | D39: 1250784 | E39: 99106 | F39: 14439 | G39: 144 | H39: 1364474 | I39: 214266 | J39: 519414 | K39: 733680 | L39: 2344124
A40: FEB | B40: 248326 | D40: 1252178 | E40: 99111 | F40: 14474 | G40: 154 | H40: 1365917 | I40: 214453 | J40: 519485 | K40: 733938 | L40: 2348181
A41: MAR | B41: 251568 | D41: 1253626 | E41: 99145 | F41: 14505 | G41: 160 | H41: 1367436 | I41: 214576 | J41: 519429 | K41: 734005 | L41: 2353009
A42: APR | B42: 254310 | D42: 1255163 | E42: 99169 | F42: 14511 | G42: 162 | H42: 1369005 | I42: 214662 | J42: 519442 | K42: 734104 | L42: 2357419
A43: MAY | B43: 257976 | D43: 1257135 | E43: 99137 | F43: 14516 | G43: 169 | H43: 1370957 | I43: 214712 | J43: 519514 | K43: 734226 | L43: 2363159
A44: JUN | B44: 261003 | D44: 1258812 | E44: 99137 | F44: 14483 | G44: 175 | H44: 1372607 | I44: 214761 | J44: 519513 | K44: 734274 | L44: 2367884
A45: Grand Total | B45: 6677493 | C45: 4 | D45: 44525443 | E45: 3563396 | F45: 526915 | G45: 1999 | H45: 48617757 | I45: 7698590 | J45: 18595055 | K45: 26293645 | L45: 81588895

Sheet NMIs Per NTC
A1: NTC | B1: NTC Desc | C1: Group | D1: Category | E1: Date | F1: MONTH | G1: YEAR | H1: FIN YEAR | I1: NMI No
A2: 7500 | B2: 7500 - Solar PV 2 (net with FIT) | C2: Photovoltaic | D2: FIXED | E2: 2012-08-31 | F2: AUG | G2: 2012 | H2: 1213 | I2: 10
A3: 7500 | B3: 7500 - Solar PV 2 (net with FIT) | C3: Photovoltaic | D3: FIXED | E3: 2012-09-30 | F3: SEP | G3: 2012 | H3: 1213 | I3: 193
A4: 7500 | B4: 7500 - Solar PV 2 (net with FIT) | C4: Photovoltaic | D4: FIXED | E4: 2012-10-31 | F4: OCT | G4: 2012 | H4: 1213 | I4: 844
A5: 7500 | B5: 7500 - Solar PV 2 (net with FIT) | C5: Photovoltaic | D5: FIXED | E5: 2012-11-30 | F5: NOV | G5: 2012 | H5: 1213 | I5: 2031
A6: 7500 | B6: 7500 - Solar PV 2 (net with FIT) | C6: Photovoltaic | D6: FIXED | E6: 2012-12-31 | F6: DEC | G6: 2012 | H6: 1213 | I6: 4515
A7: 7500 | B7: 7500 - Solar PV 2 (net with FIT) | C7: Photovoltaic | D7: FIXED | E7: 2013-01-31 | F7: JAN | G7: 2013 | H7: 1213 | I7: 7027
A8: 7500 | B8: 7500 - Solar PV 2 (net with FIT) | C8: Photovoltaic | D8: FIXED | E8: 2013-02-28 | F8: FEB | G8: 2013 | H8: 1213 | I8: 9322
A9: 7500 | B9: 7500 - Solar PV 2 (net with FIT) | C9: Photovoltaic | D9: FIXED | E9: 2013-03-31 | F9: MAR | G9: 2013 | H9: 1213 | I9: 11301
A10: 7500 | B10: 7500 - Solar PV 2 (net with FIT) | C10: Photovoltaic | D10: FIXED | E10: 2013-04-30 | F10: APR | G10: 2013 | H10: 1213 | I10: 13462
A11: 7500 | B11: 7500 - Solar PV 2 (net with FIT) | C11: Photovoltaic | D11: FIXED | E11: 2013-05-31 | F11: MAY | G11: 2013 | H11: 1213 | I11: 16823
A12: 7500 | B12: 7500 - Solar PV 2 (net with FIT) | C12: Photovoltaic | D12: FIXED | E12: 2013-06-30 | F12: JUN | G12: 2013 | H12: 1213 | I12: 19027
A13: 7500 | B13: 7500 - Solar PV 2 (net with FIT) | C13: Photovoltaic | D13: FIXED | E13: 2013-07-31 | F13: JUL | G13: 2013 | H13: 1314 | I13: 21589
A14: 7500 | B14: 7500 - Solar PV 2 (net with FIT) | C14: Photovoltaic | D14: FIXED | E14: 2013-08-31 | F14: AUG | G14: 2013 | H14: 1314 | I14: 25871
A15: 7500 | B15: 7500 - Solar PV 2 (net with FIT) | C15: Photovoltaic | D15: FIXED | E15: 2013-09-30 | F15: SEP | G15: 2013 | H15: 1314 | I15: 28990
A16: 7500 | B16: 7500 - Solar PV 2 (net with FIT) | C16: Photovoltaic | D16: FIXED | E16: 2013-10-31 | F16: OCT | G16: 2013 | H16: 1314 | I16: 32198
A17: 7500 | B17: 7500 - Solar PV 2 (net with FIT) | C17: Photovoltaic | D17: FIXED | E17: 2013-11-30 | F17: NOV | G17: 2013 | H17: 1314 | I17: 35164
A18: 7500 | B18: 7500 - Solar PV 2 (net with FIT) | C18: Photovoltaic | D18: FIXED | E18: 2013-12-31 | F18: DEC | G18: 2013 | H18: 1314 | I18: 38377
A19: 7500 | B19: 7500 - Solar PV 2 (net with FIT) | C19: Photovoltaic | D19: FIXED | E19: 2014-01-31 | F19: JAN | G19: 2014 | H19: 1314 | I19: 41099
A20: 7500 | B20: 7500 - Solar PV 2 (net with FIT) | C20: Photovoltaic | D20: FIXED | E20: 2014-02-28 | F20: FEB | G20: 2014 | H20: 1314 | I20: 44030
A21: 7500 | B21: 7500 - Solar PV 2 (net with FIT) | C21: Photovoltaic | D21: FIXED | E21: 2014-03-31 | F21: MAR | G21: 2014 | H21: 1314 | I21: 47974
A22: 7500 | B22: 7500 - Solar PV 2 (net with FIT) | C22: Photovoltaic | D22: FIXED | E22: 2014-04-30 | F22: APR | G22: 2014 | H22: 1314 | I22: 51363
A23: 7500 | B23: 7500 - Solar PV 2 (net with FIT) | C23: Photovoltaic | D23: FIXED | E23: 2014-05-31 | F23: MAY | G23: 2014 | H23: 1314 | I23: 55737
A24: 7500 | B24: 7500 - Solar PV 2 (net with FIT) | C24: Photovoltaic | D24: FIXED | E24: 2014-06-30 | F24: JUN | G24: 2014 | H24: 1314 | I24: 59308
A25: 7600 | B25: 7600 - Residential - PeakSmart | C25: SAC - Non Demand | D25: FIXED | E25: 2013-07-31 | F25: JUL | G25: 2013 | H25: 1314
A26: 7600 | B26: 7600 - Residential - PeakSmart | C26: SAC - Non Demand | D26: FIXED | E26: 2013-08-31 | F26: AUG | G26: 2013 | H26: 1314
A27: 7600 | B27: 7600 - Residential - PeakSmart | C27: SAC - Non Demand | D27: FIXED | E27: 2013-09-30 | F27: SEP | G27: 2013 | H27: 1314
A28: 7600 | B28: 7600 - Residential - PeakSmart | C28: SAC - Non Demand | D28: FIXED | E28: 2013-10-31 | F28: OCT | G28: 2013 | H28: 1314 | I28: 1
A29: 7600 | B29: 7600 - Residential - PeakSmart | C29: SAC - Non Demand | D29: FIXED | E29: 2013-11-30 | F29: NOV | G29: 2013 | H29: 1314 | I29: 1
A30: 7600 | B30: 7600 - Residential - PeakSmart | C30: SAC - Non Demand | D30: FIXED | E30: 2013-12-31 | F30: DEC | G30: 2013 | H30: 1314 | I30: 1
A31: 7600 | B31: 7600 - Residential - PeakSmart | C31: SAC - Non Demand | D31: FIXED | E31: 2014-01-31 | F31: JAN | G31: 2014 | H31: 1314 | I31: 1
A32: 7600 | B32: 7600 - Residential - PeakSmart | C32: SAC - Non Demand | D32: FIXED | E32: 2014-02-28 | F32: FEB | G32: 2014 | H32: 1314
A33: 7600 | B33: 7600 - Residential - PeakSmart | C33: SAC - Non Demand | D33: FIXED | E33: 2014-03-31 | F33: MAR | G33: 2014 | H33: 1314
A34: 7600 | B34: 7600 - Residential - PeakSmart | C34: SAC - Non Demand | D34: FIXED | E34: 2014-04-30 | F34: APR | G34: 2014 | H34: 1314
A35: 7600 | B35: 7600 - Residential - PeakSmart | C35: SAC - Non Demand | D35: FIXED | E35: 2014-05-31 | F35: MAY | G35: 2014 | H35: 1314
A36: 7600 | B36: 7600 - Residential - PeakSmart | C36: SAC - Non Demand | D36: FIXED | E36: 2014-06-30 | F36: JUN | G36: 2014 | H36: 1314
A37: 8300 | B37: 8300 - Demand Small | C37: SAC - Demand | D37: FIXED | E37: 2011-07-31 | F37: JUL | G37: 2011 | H37: 1112 | I37: 5231
A38: 8300 | B38: 8300 - Demand Small | C38: SAC - Demand | D38: FIXED | E38: 2011-08-31 | F38: AUG | G38: 2011 | H38: 1112 | I38: 5356
A39: 8300 | B39: 8300 - Demand Small | C39: SAC - Demand | D39: FIXED | E39: 2011-09-30 | F39: SEP | G39: 2011 | H39: 1112 | I39: 5398
A40: 8300 | B40: 8300 - Demand Small | C40: SAC - Demand | D40: FIXED | E40: 2011-10-31 | F40: OCT | G40: 2011 | H40: 1112 | I40: 5529
A41: 8300 | B41: 8300 - Demand Small | C41: SAC - Demand | D41: FIXED | E41: 2011-11-30 | F41: NOV | G41: 2011 | H41: 1112 | I41: 5554
A42: 8300 | B42: 8300 - Demand Small | C42: SAC - Demand | D42: FIXED | E42: 2011-12-31 | F42: DEC | G42: 2011 | H42: 1112 | I42: 5799
A43: 8300 | B43: 8300 - Demand Small | C43: SAC - Demand | D43: FIXED | E43: 2012-01-31 | F43: JAN | G43: 2012 | H43: 1112 | I43: 6343
A44: 8300 | B44: 8300 - Demand Small | C44: SAC - Demand | D44: FIXED | E44: 2012-02-29 | F44: FEB | G44: 2012 | H44: 1112 | I44: 6363
A45: 8300 | B45: 8300 - Demand Small | C45: SAC - Demand | D45: FIXED | E45: 2012-03-31 | F45: MAR | G45: 2012 | H45: 1112 | I45: 6372
A46: 8300 | B46: 8300 - Demand Small | C46: SAC - Demand | D46: FIXED | E46: 2012-04-30 | F46: APR | G46: 2012 | H46: 1112 | I46: 6401
A47: 8300 | B47: 8300 - Demand Small | C47: SAC - Demand | D47: FIXED | E47: 2012-05-31 | F47: MAY | G47: 2012 | H47: 1112 | I47: 6441
A48: 8300 | B48: 8300 - Demand Small | C48: SAC - Demand | D48: FIXED | E48: 2012-06-30 | F48: JUN | G48: 2012 | H48: 1112 | I48: 6596
A49: 8300 | B49: 8300 - Demand Small | C49: SAC - Demand | D49: FIXED | E49: 2012-07-31 | F49: JUL | G49: 2012 | H49: 1213 | I49: 9149
A50: 8300 | B50: 8300 - Demand Small | C50: SAC - Demand | D50: FIXED | E50: 2012-08-31 | F50: AUG | G50: 2012 | H50: 1213 | I50: 9264
A51: 8300 | B51: 8300 - Demand Small | C51: SAC - Demand | D51: FIXED | E51: 2012-09-30 | F51: SEP | G51: 2012 | H51: 1213 | I51: 9289
A52: 8300 | B52: 8300 - Demand Small | C52: SAC - Demand | D52: FIXED | E52: 2012-10-31 | F52: OCT | G52: 2012 | H52: 1213 | I52: 8629
A53: 8300 | B53: 8300 - Demand Small | C53: SAC - Demand | D53: FIXED | E53: 2012-11-30 | F53: NOV | G53: 2012 | H53: 1213 | I53: 8598
A54: 8300 | B54: 8300 - Demand Small | C54: SAC - Demand | D54: FIXED | E54: 2012-12-31 | F54: DEC | G54: 2012 | H54: 1213 | I54: 8587
A55: 8300 | B55: 8300 - Demand Small | C55: SAC - Demand | D55: FIXED | E55: 2013-01-31 | F55: JAN | G55: 2013 | H55: 1213 | I55: 8592
A56: 8300 | B56: 8300 - Demand Small | C56: SAC - Demand | D56: FIXED | E56: 2013-02-28 | F56: FEB | G56: 2013 | H56: 1213 | I56: 8581
A57: 8300 | B57: 8300 - Demand Small | C57: SAC - Demand | D57: FIXED | E57: 2013-03-31 | F57: MAR | G57: 2013 | H57: 1213 | I57: 8583
A58: 8300 | B58: 8300 - Demand Small | C58: SAC - Demand | D58: FIXED | E58: 2013-04-30 | F58: APR | G58: 2013 | H58: 1213 | I58: 8580
A59: 8300 | B59: 8300 - Demand Small | C59: SAC - Demand | D59: FIXED | E59: 2013-05-31 | F59: MAY | G59: 2013 | H59: 1213 | I59: 8583
A60: 8300 | B60: 8300 - Demand Small | C60: SAC - Demand | D60: FIXED | E60: 2013-06-30 | F60: JUN | G60: 2013 | H60: 1213 | I60: 8579
A61: 8300 | B61: 8300 - Demand Small | C61: SAC - Demand | D61: FIXED | E61: 2013-07-31 | F61: JUL | G61: 2013 | H61: 1314 | I61: 8590
A62: 8300 | B62: 8300 - Demand Small | C62: SAC - Demand | D62: FIXED | E62: 2013-08-31 | F62: AUG | G62: 2013 | H62: 1314 | I62: 8787
A63: 8300 | B63: 8300 - Demand Small | C63: SAC - Demand | D63: FIXED | E63: 2013-09-30 | F63: SEP | G63: 2013 | H63: 1314 | I63: 8783
A64: 8300 | B64: 8300 - Demand Small | C64: SAC - Demand | D64: FIXED | E64: 2013-10-31 | F64: OCT | G64: 2013 | H64: 1314 | I64: 8784
A65: 8300 | B65: 8300 - Demand Small | C65: SAC - Demand | D65: FIXED | E65: 2013-11-30 | F65: NOV | G65: 2013 | H65: 1314 | I65: 8804
A66: 8300 | B66: 8300 - Demand Small | C66: SAC - Demand | D66: FIXED | E66: 2013-12-31 | F66: DEC | G66: 2013 | H66: 1314 | I66: 8820
A67: 8300 | B67: 8300 - Demand Small | C67: SAC - Demand | D67: FIXED | E67: 2014-01-31 | F67: JAN | G67: 2014 | H67: 1314 | I67: 8830
A68: 8300 | B68: 8300 - Demand Small | C68: SAC - Demand | D68: FIXED | E68: 2014-02-28 | F68: FEB | G68: 2014 | H68: 1314 | I68: 8847
A69: 8300 | B69: 8300 - Demand Small | C69: SAC - Demand | D69: FIXED | E69: 2014-03-31 | F69: MAR | G69: 2014 | H69: 1314 | I69: 8854
A70: 8300 | B70: 8300 - Demand Small | C70: SAC - Demand | D70: FIXED | E70: 2014-04-30 | F70: APR | G70: 2014 | H70: 1314 | I70: 8869
A71: 8300 | B71: 8300 - Demand Small | C71: SAC - Demand | D71: FIXED | E71: 2014-05-31 | F71: MAY | G71: 2014 | H71: 1314 | I71: 8915
A72: 8300 | B72: 8300 - Demand Small | C72: SAC - Demand | D72: FIXED | E72: 2014-06-30 | F72: JUN | G72: 2014 | H72: 1314 | I72: 8962
A73: 8400 | B73: 8400 - Residential Flat | C73: SAC - Non Demand | D73: FIXED | E73: 2011-07-31 | F73: JUL | G73: 2011 | H73: 1112 | I73: 1216105
A74: 8400 | B74: 8400 - Residential Flat | C74: SAC - Non Demand | D74: FIXED | E74: 2011-08-31 | F74: AUG | G74: 2011 | H74: 1112 | I74: 1217679
A75: 8400 | B75: 8400 - Residential Flat | C75: SAC - Non Demand | D75: FIXED | E75: 2011-09-30 | F75: SEP | G75: 2011 | H75: 1112 | I75: 1218940
A76: 8400 | B76: 8400 - Residential Flat | C76: SAC - Non Demand | D76: FIXED | E76: 2011-10-31 | F76: OCT | G76: 2011 | H76: 1112 | I76: 1219720
A77: 8400 | B77: 8400 - Residential Flat | C77: SAC - Non Demand | D77: FIXED | E77: 2011-11-30 | F77: NOV | G77: 2011 | H77: 1112 | I77: 1221304
A78: 8400 | B78: 8400 - Residential Flat | C78: SAC - Non Demand | D78: FIXED | E78: 2011-12-31 | F78: DEC | G78: 2011 | H78: 1112 | I78: 1222025
A79: 8400 | B79: 8400 - Residential Flat | C79: SAC - Non Demand | D79: FIXED | E79: 2012-01-31 | F79: JAN | G79: 2012 | H79: 1112 | I79: 1222681
A80: 8400 | B80: 8400 - Residential Flat | C80: SAC - Non Demand | D80: FIXED | E80: 2012-02-29 | F80: FEB | G80: 2012 | H80: 1112 | I80: 1223975
A81: 8400 | B81: 8400 - Residential Flat | C81: SAC - Non Demand | D81: FIXED | E81: 2012-03-31 | F81: MAR | G81: 2012 | H81: 1112 | I81: 1225179
A82: 8400 | B82: 8400 - Residential Flat | C82: SAC - Non Demand | D82: FIXED | E82: 2012-04-30 | F82: APR | G82: 2012 | H82: 1112 | I82: 1226357
A83: 8400 | B83: 8400 - Residential Flat | C83: SAC - Non Demand | D83: FIXED | E83: 2012-05-31 | F83: MAY | G83: 2012 | H83: 1112 | I83: 1228204
A84: 8400 | B84: 8400 - Residential Flat | C84: SAC - Non Demand | D84: FIXED | E84: 2012-06-30 | F84: JUN | G84: 2012 | H84: 1112 | I84: 1229433
A85: 8400 | B85: 8400 - Residential Flat | C85: SAC - Non Demand | D85: FIXED | E85: 2012-07-31 | F85: JUL | G85: 2012 | H85: 1213 | I85: 1230924
A86: 8400 | B86: 8400 - Residential Flat | C86: SAC - Non Demand | D86: FIXED | E86: 2012-08-31 | F86: AUG | G86: 2012 | H86: 1213 | I86: 1232077
A87: 8400 | B87: 8400 - Residential Flat | C87: SAC - Non Demand | D87: FIXED | E87: 2012-09-30 | F87: SEP | G87: 2012 | H87: 1213 | I87: 1232973
A88: 8400 | B88: 8400 - Residential Flat | C88: SAC - Non Demand | D88: FIXED | E88: 2012-10-31 | F88: OCT | G88: 2012 | H88: 1213 | I88: 1234598
A89: 8400 | B89: 8400 - Residential Flat | C89: SAC - Non Demand | D89: FIXED | E89: 2012-11-30 | F89: NOV | G89: 2012 | H89: 1213 | I89: 1235911
A90: 8400 | B90: 8400 - Residential Flat | C90: SAC - Non Demand | D90: FIXED | E90: 2012-12-31 | F90: DEC | G90: 2012 | H90: 1213 | I90: 1237019
A91: 8400 | B91: 8400 - Residential Flat | C91: SAC - Non Demand | D91: FIXED | E91: 2013-01-31 | F91: JAN | G91: 2013 | H91: 1213 | I91: 1237334
A92: 8400 | B92: 8400 - Residential Flat | C92: SAC - Non Demand | D92: FIXED | E92: 2013-02-28 | F92: FEB | G92: 2013 | H92: 1213 | I92: 1238302
A93: 8400 | B93: 8400 - Residential Flat | C93: SAC - Non Demand | D93: FIXED | E93: 2013-03-31 | F93: MAR | G93: 2013 | H93: 1213 | I93: 1239110
A94: 8400 | B94: 8400 - Residential Flat | C94: SAC - Non Demand | D94: FIXED | E94: 2013-04-30 | F94: APR | G94: 2013 | H94: 1213 | I94: 1240086
A95: 8400 | B95: 8400 - Residential Flat | C95: SAC - Non Demand | D95: FIXED | E95: 2013-05-31 | F95: MAY | G95: 2013 | H95: 1213 | I95: 1241451
A96: 8400 | B96: 8400 - Residential Flat | C96: SAC - Non Demand | D96: FIXED | E96: 2013-06-30 | F96: JUN | G96: 2013 | H96: 1213 | I96: 1242547
A97: 8400 | B97: 8400 - Residential Flat | C97: SAC - Non Demand | D97: FIXED | E97: 2013-07-31 | F97: JUL | G97: 2013 | H97: 1314 | I97: 1243991
A98: 8400 | B98: 8400 - Residential Flat | C98: SAC - Non Demand | D98: FIXED | E98: 2013-08-31 | F98: AUG | G98: 2013 | H98: 1314 | I98: 1245430
A99: 8400 | B99: 8400 - Residential Flat | C99: SAC - Non Demand | D99: FIXED | E99: 2013-09-30 | F99: SEP | G99: 2013 | H99: 1314 | I99: 1246737
A100: 8400 | B100: 8400 - Residential Flat | C100: SAC - Non Demand | D100: FIXED | E100: 2013-10-31 | F100: OCT | G100: 2013 | H100: 1314 | I100: 1248082
A101: 8400 | B101: 8400 - Residential Flat | C101: SAC - Non Demand | D101: FIXED | E101: 2013-11-30 | F101: NOV | G101: 2013 | H101: 1314 | I101: 1249149
A102: 8400 | B102: 8400 - Residential Flat | C102: SAC - Non Demand | D102: FIXED | E102: 2013-12-31 | F102: DEC | G102: 2013 | H102: 1314 | I102: 1250422
A103: 8400 | B103: 8400 - Residential Flat | C103: SAC - Non Demand | D103: FIXED | E103: 2014-01-31 | F103: JAN | G103: 2014 | H103: 1314 | I103: 1250784
A104: 8400 | B104: 8400 - Residential Flat | C104: SAC - Non Demand | D104: FIXED | E104: 2014-02-28 | F104: FEB | G104: 2014 | H104: 1314 | I104: 1252178
A105: 8400 | B105: 8400 - Residential Flat | C105: SAC - Non Demand | D105: FIXED | E105: 2014-03-31 | F105: MAR | G105: 2014 | H105: 1314 | I105: 1253626
A106: 8400 | B106: 8400 - Residential Flat | C106: SAC - Non Demand | D106: FIXED | E106: 2014-04-30 | F106: APR | G106: 2014 | H106: 1314 | I106: 1255163
A107: 8400 | B107: 8400 - Residential Flat | C107: SAC - Non Demand | D107: FIXED | E107: 2014-05-31 | F107: MAY | G107: 2014 | H107: 1314 | I107: 1257135
A108: 8400 | B108: 8400 - Residential Flat | C108: SAC - Non Demand | D108: FIXED | E108: 2014-06-30 | F108: JUN | G108: 2014 | H108: 1314 | I108: 1258812
A109: 8500 | B109: 8500 - Business Flat | C109: SAC - Non Demand | D109: FIXED | E109: 2011-07-31 | F109: JUL | G109: 2011 | H109: 1112 | I109: 78182
A110: 8500 | B110: 8500 - Business Flat | C110: SAC - Non Demand | D110: FIXED | E110: 2011-08-31 | F110: AUG | G110: 2011 | H110: 1112 | I110: 79434
A111: 8500 | B111: 8500 - Business Flat | C111: SAC - Non Demand | D111: FIXED | E111: 2011-09-30 | F111: SEP | G111: 2011 | H111: 1112 | I111: 80167
A112: 8500 | B112: 8500 - Business Flat | C112: SAC - Non Demand | D112: FIXED | E112: 2011-10-31 | F112: OCT | G112: 2011 | H112: 1112 | I112: 80799
A113: 8500 | B113: 8500 - Business Flat | C113: SAC - Non Demand | D113: FIXED | E113: 2011-11-30 | F113: NOV | G113: 2011 | H113: 1112 | I113: 80854
A114: 8500 | B114: 8500 - Business Flat | C114: SAC - Non Demand | D114: FIXED | E114: 2011-12-31 | F114: DEC | G114: 2011 | H114: 1112 | I114: 80846
A115: 8500 | B115: 8500 - Business Flat | C115: SAC - Non Demand | D115: FIXED | E115: 2012-01-31 | F115: JAN | G115: 2012 | H115: 1112 | I115: 80885
A116: 8500 | B116: 8500 - Business Flat | C116: SAC - Non Demand | D116: FIXED | E116: 2012-02-29 | F116: FEB | G116: 2012 | H116: 1112 | I116: 81007
A117: 8500 | B117: 8500 - Business Flat | C117: SAC - Non Demand | D117: FIXED | E117: 2012-03-31 | F117: MAR | G117: 2012 | H117: 1112 | I117: 81070
A118: 8500 | B118: 8500 - Business Flat | C118: SAC - Non Demand | D118: FIXED | E118: 2012-04-30 | F118: APR | G118: 2012 | H118: 1112 | I118: 81095
A119: 8500 | B119: 8500 - Business Flat | C119: SAC - Non Demand | D119: FIXED | E119: 2012-05-31 | F119: MAY | G119: 2012 | H119: 1112 | I119: 81142
A120: 8500 | B120: 8500 - Business Flat | C120: SAC - Non Demand | D120: FIXED | E120: 2012-06-30 | F120: JUN | G120: 2012 | H120: 1112 | I120: 81218
A121: 8500 | B121: 8500 - Business Flat | C121: SAC - Non Demand | D121: FIXED | E121: 2012-07-31 | F121: JUL | G121: 2012 | H121: 1213 | I121: 81457
A122: 8500 | B122: 8500 - Business Flat | C122: SAC - Non Demand | D122: FIXED | E122: 2012-08-31 | F122: AUG | G122: 2012 | H122: 1213 | I122: 81523
A123: 8500 | B123: 8500 - Business Flat | C123: SAC - Non Demand | D123: FIXED | E123: 2012-09-30 | F123: SEP | G123: 2012 | H123: 1213 | I123: 81579
A124: 8500 | B124: 8500 - Business Flat | C124: SAC - Non Demand | D124: FIXED | E124: 2012-10-31 | F124: OCT | G124: 2012 | H124: 1213 | I124: 82076
A125: 8500 | B125: 8500 - Business Flat | C125: SAC - Non Demand | D125: FIXED | E125: 2012-11-30 | F125: NOV | G125: 2012 | H125: 1213 | I125: 98608
A126: 8500 | B126: 8500 - Business Flat | C126: SAC - Non Demand | D126: FIXED | E126: 2012-12-31 | F126: DEC | G126: 2012 | H126: 1213 | I126: 98800
A127: 8500 | B127: 8500 - Business Flat | C127: SAC - Non Demand | D127: FIXED | E127: 2013-01-31 | F127: JAN | G127: 2013 | H127: 1213 | I127: 98795
A128: 8500 | B128: 8500 - Business Flat | C128: SAC - Non Demand | D128: FIXED | E128: 2013-02-28 | F128: FEB | G128: 2013 | H128: 1213 | I128: 98816
A129: 8500 | B129: 8500 - Business Flat | C129: SAC - Non Demand | D129: FIXED | E129: 2013-03-31 | F129: MAR | G129: 2013 | H129: 1213 | I129: 98832
A130: 8500 | B130: 8500 - Business Flat | C130: SAC - Non Demand | D130: FIXED | E130: 2013-04-30 | F130: APR | G130: 2013 | H130: 1213 | I130: 98821
A131: 8500 | B131: 8500 - Business Flat | C131: SAC - Non Demand | D131: FIXED | E131: 2013-05-31 | F131: MAY | G131: 2013 | H131: 1213 | I131: 98830
A132: 8500 | B132: 8500 - Business Flat | C132: SAC - Non Demand | D132: FIXED | E132: 2013-06-30 | F132: JUN | G132: 2013 | H132: 1213 | I132: 98884
A133: 8500 | B133: 8500 - Business Flat | C133: SAC - Non Demand | D133: FIXED | E133: 2013-07-31 | F133: JUL | G133: 2013 | H133: 1314 | I133: 98903
A134: 8500 | B134: 8500 - Business Flat | C134: SAC - Non Demand | D134: FIXED | E134: 2013-08-31 | F134: AUG | G134: 2013 | H134: 1314 | I134: 98922
A135: 8500 | B135: 8500 - Business Flat | C135: SAC - Non Demand | D135: FIXED | E135: 2013-09-30 | F135: SEP | G135: 2013 | H135: 1314 | I135: 98978
A136: 8500 | B136: 8500 - Business Flat | C136: SAC - Non Demand | D136: FIXED | E136: 2013-10-31 | F136: OCT | G136: 2013 | H136: 1314 | I136: 99050
A137: 8500 | B137: 8500 - Business Flat | C137: SAC - Non Demand | D137: FIXED | E137: 2013-11-30 | F137: NOV | G137: 2013 | H137: 1314 | I137: 99080
A138: 8500 | B138: 8500 - Business Flat | C138: SAC - Non Demand | D138: FIXED | E138: 2013-12-31 | F138: DEC | G138: 2013 | H138: 1314 | I138: 99124
A139: 8500 | B139: 8500 - Business Flat | C139: SAC - Non Demand | D139: FIXED | E139: 2014-01-31 | F139: JAN | G139: 2014 | H139: 1314 | I139: 99106
A140: 8500 | B140: 8500 - Business Flat | C140: SAC - Non Demand | D140: FIXED | E140: 2014-02-28 | F140: FEB | G140: 2014 | H140: 1314 | I140: 99111
A141: 8500 | B141: 8500 - Business Flat | C141: SAC - Non Demand | D141: FIXED | E141: 2014-03-31 | F141: MAR | G141: 2014 | H141: 1314 | I141: 99145
A142: 8500 | B142: 8500 - Business Flat | C142: SAC - Non Demand | D142: FIXED | E142: 2014-04-30 | F142: APR | G142: 2014 | H142: 1314 | I142: 99169
A143: 8500 | B143: 8500 - Business Flat | C143: SAC - Non Demand | D143: FIXED | E143: 2014-05-31 | F143: MAY | G143: 2014 | H143: 1314 | I143: 99137
A144: 8500 | B144: 8500 - Business Flat | C144: SAC - Non Demand | D144: FIXED | E144: 2014-06-30 | F144: JUN | G144: 2014 | H144: 1314 | I144: 99137
A145: 8500 | B145: 8500 - Business Flat | C145: SAC - Non Demand | D145: FIXED | E145: 2011-07-31 | F145: JUL | G145: 2011 | H145: 1112 | I145: 20779
A146: 8500 | B146: 8500 - Business Flat | C146: SAC - Non Demand | D146: FIXED | E146: 2011-08-31 | F146: AUG | G146: 2011 | H146: 1112 | I146: 19568
A147: 8500 | B147: 8500 - Business Flat | C147: SAC - Non Demand | D147: FIXED | E147: 2011-09-30 | F147: SEP | G147: 2011 | H147: 1112 | I147: 18943
A148: 8500 | B148: 8500 - Business Flat | C148: SAC - Non Demand | D148: FIXED | E148: 2011-10-31 | F148: OCT | G148: 2011 | H148: 1112 | I148: 18367
A149: 8500 | B149: 8500 - Business Flat | C149: SAC - Non Demand | D149: FIXED | E149: 2011-11-30 | F149: NOV | G149: 2011 | H149: 1112 | I149: 18308
A150: 8500 | B150: 8500 - Business Flat | C150: SAC - Non Demand | D150: FIXED | E150: 2011-12-31 | F150: DEC | G150: 2011 | H150: 1112 | I150: 18273
A151: 8500 | B151: 8500 - Business Flat | C151: SAC - Non Demand | D151: FIXED | E151: 2012-01-31 | F151: JAN | G151: 2012 | H151: 1112 | I151: 18251
A152: 8500 | B152: 8500 - Business Flat | C152: SAC - Non Demand | D152: FIXED | E152: 2012-02-29 | F152: FEB | G152: 2012 | H152: 1112 | I152: 18245
A153: 8500 | B153: 8500 - Business Flat | C153: SAC - Non Demand | D153: FIXED | E153: 2012-03-31 | F153: MAR | G153: 2012 | H153: 1112 | I153: 18233
A154: 8500 | B154: 8500 - Business Flat | C154: SAC - Non Demand | D154: FIXED | E154: 2012-04-30 | F154: APR | G154: 2012 | H154: 1112 | I154: 18207
A155: 8500 | B155: 8500 - Business Flat | C155: SAC - Non Demand | D155: FIXED | E155: 2012-05-31 | F155: MAY | G155: 2012 | H155: 1112 | I155: 18180
A156: 8500 | B156: 8500 - Business Flat | C156: SAC - Non Demand | D156: FIXED | E156: 2012-06-30 | F156: JUN | G156: 2012 | H156: 1112 | I156: 18102
A157: 8500 | B157: 8500 - Business Flat | C157: SAC - Non Demand | D157: FIXED | E157: 2012-07-31 | F157: JUL | G157: 2012 | H157: 1213 | I157: 16981
A158: 8500 | B158: 8500 - Business Flat | C158: SAC - Non Demand | D158: FIXED | E158: 2012-08-31 | F158: AUG | G158: 2012 | H158: 1213 | I158: 16841
A159: 8500 | B159: 8500 - Business Flat | C159: SAC - Non Demand | D159: FIXED | E159: 2012-09-30 | F159: SEP | G159: 2012 | H159: 1213 | I159: 16748
A160: 8500 | B160: 8500 - Business Flat | C160: SAC - Non Demand | D160: FIXED | E160: 2012-10-31 | F160: OCT | G160: 2012 | H160: 1213 | I160: 16641
A161: 8500 | B161: 8500 - Business Flat | C161: SAC - Non Demand | D161: FIXED | E161: 2012-11-30 | F161: NOV | G161: 2012 | H161: 1213 | I161: 147
A162: 8500 | B162: 8500 - Business Flat | C162: SAC - Non Demand | D162: FIXED | E162: 2012-12-31 | F162: DEC | G162: 2012 | H162: 1213
A163: 8500 | B163: 8500 - Business Flat | C163: SAC - Non Demand | D163: FIXED | E163: 2013-01-31 | F163: JAN | G163: 2013 | H163: 1213
A164: 8500 | B164: 8500 - Business Flat | C164: SAC - Non Demand | D164: FIXED | E164: 2013-02-28 | F164: FEB | G164: 2013 | H164: 1213
A165: 8500 | B165: 8500 - Business Flat | C165: SAC - Non Demand | D165: FIXED | E165: 2013-03-31 | F165: MAR | G165: 2013 | H165: 1213
A166: 8500 | B166: 8500 - Business Flat | C166: SAC - Non Demand | D166: FIXED | E166: 2013-04-30 | F166: APR | G166: 2013 | H166: 1213
A167: 8500 | B167: 8500 - Business Flat | C167: SAC - Non Demand | D167: FIXED | E167: 2013-05-31 | F167: MAY | G167: 2013 | H167: 1213
A168: 8500 | B168: 8500 - Business Flat | C168: SAC - Non Demand | D168: FIXED | E168: 2013-06-30 | F168: JUN | G168: 2013 | H168: 1213
A169: 8500 | B169: 8500 - Business Flat | C169: SAC - Non Demand | D169: FIXED | E169: 2013-07-31 | F169: JUL | G169: 2013 | H169: 1314
A170: 8500 | B170: 8500 - Business Flat | C170: SAC - Non Demand | D170: FIXED | E170: 2013-08-31 | F170: AUG | G170: 2013 | H170: 1314
A171: 8500 | B171: 8500 - Business Flat | C171: SAC - Non Demand | D171: FIXED | E171: 2013-09-30 | F171: SEP | G171: 2013 | H171: 1314
A172: 8500 | B172: 8500 - Business Flat | C172: SAC - Non Demand | D172: FIXED | E172: 2013-10-31 | F172: OCT | G172: 2013 | H172: 1314
A173: 8500 | B173: 8500 - Business Flat | C173: SAC - Non Demand | D173: FIXED | E173: 2013-11-30 | F173: NOV | G173: 2013 | H173: 1314
A174: 8500 | B174: 8500 - Business Flat | C174: SAC - Non Demand | D174: FIXED | E174: 2013-12-31 | F174: DEC | G174: 2013 | H174: 1314
A175: 8500 | B175: 8500 - Business Flat | C175: SAC - Non Demand | D175: FIXED | E175: 2014-01-31 | F175: JAN | G175: 2014 | H175: 1314
A176: 8500 | B176: 8500 - Business Flat | C176: SAC - Non Demand | D176: FIXED | E176: 2014-02-28 | F176: FEB | G176: 2014 | H176: 1314
A177: 8500 | B177: 8500 - Business Flat | C177: SAC - Non Demand | D177: FIXED | E177: 2014-03-31 | F177: MAR | G177: 2014 | H177: 1314
A178: 8500 | B178: 8500 - Business Flat | C178: SAC - Non Demand | D178: FIXED | E178: 2014-04-30 | F178: APR | G178: 2014 | H178: 1314
A179: 8500 | B179: 8500 - Business Flat | C179: SAC - Non Demand | D179: FIXED | E179: 2014-05-31 | F179: MAY | G179: 2014 | H179: 1314
A180: 8500 | B180: 8500 - Business Flat | C180: SAC - Non Demand | D180: FIXED | E180: 2014-06-30 | F180: JUN | G180: 2014 | H180: 1314
A181: 8800 | B181: 8800 - Business - TOU | C181: SAC - Non Demand | D181: FIXED | E181: 2011-07-31 | F181: JUL | G181: 2011 | H181: 1112 | I181: 6666
A182: 8800 | B182: 8800 - Business - TOU | C182: SAC - Non Demand | D182: FIXED | E182: 2011-08-31 | F182: AUG | G182: 2011 | H182: 1112 | I182: 6623
A183: 8800 | B183: 8800 - Business - TOU | C183: SAC - Non Demand | D183: FIXED | E183: 2011-09-30 | F183: SEP | G183: 2011 | H183: 1112 | I183: 6617
A184: 8800 | B184: 8800 - Business - TOU | C184: SAC - Non Demand | D184: FIXED | E184: 2011-10-31 | F184: OCT | G184: 2011 | H184: 1112 | I184: 6626
A185: 8800 | B185: 8800 - Business - TOU | C185: SAC - Non Demand | D185: FIXED | E185: 2011-11-30 | F185: NOV | G185: 2011 | H185: 1112 | I185: 6618
A186: 8800 | B186: 8800 - Business - TOU | C186: SAC - Non Demand | D186: FIXED | E186: 2011-12-31 | F186: DEC | G186: 2011 | H186: 1112 | I186: 6620
A187: 8800 | B187: 8800 - Business - TOU | C187: SAC - Non Demand | D187: FIXED | E187: 2012-01-31 | F187: JAN | G187: 2012 | H187: 1112 | I187: 6621
A188: 8800 | B188: 8800 - Business - TOU | C188: SAC - Non Demand | D188: FIXED | E188: 2012-02-29 | F188: FEB | G188: 2012 | H188: 1112 | I188: 6596
A189: 8800 | B189: 8800 - Business - TOU | C189: SAC - Non Demand | D189: FIXED | E189: 2012-03-31 | F189: MAR | G189: 2012 | H189: 1112 | I189: 6604
A190: 8800 | B190: 8800 - Business - TOU | C190: SAC - Non Demand | D190: FIXED | E190: 2012-04-30 | F190: APR | G190: 2012 | H190: 1112 | I190: 6612
A191: 8800 | B191: 8800 - Business - TOU | C191: SAC - Non Demand | D191: FIXED | E191: 2012-05-31 | F191: MAY | G191: 2012 | H191: 1112 | I191: 6622
A192: 8800 | B192: 8800 - Business - TOU | C192: SAC - Non Demand | D192: FIXED | E192: 2012-06-30 | F192: JUN | G192: 2012 | H192: 1112 | I192: 6621
A193: 8800 | B193: 8800 - Business - TOU | C193: SAC - Non Demand | D193: FIXED | E193: 2012-07-31 | F193: JUL | G193: 2012 | H193: 1213 | I193: 6573
A194: 8800 | B194: 8800 - Business - TOU | C194: SAC - Non Demand | D194: FIXED | E194: 2012-08-31 | F194: AUG | G194: 2012 | H194: 1213 | I194: 6534
A195: 8800 | B195: 8800 - Business - TOU | C195: SAC - Non Demand | D195: FIXED | E195: 2012-09-30 | F195: SEP | G195: 2012 | H195: 1213 | I195: 6477
A196: 8800 | B196: 8800 - Business - TOU | C196: SAC - Non Demand | D196: FIXED | E196: 2012-10-31 | F196: OCT | G196: 2012 | H196: 1213 | I196: 6417
A197: 8800 | B197: 8800 - Business - TOU | C197: SAC - Non Demand | D197: FIXED | E197: 2012-11-30 | F197: NOV | G197: 2012 | H197: 1213 | I197: 60
A198: 8800 | B198: 8800 - Business - TOU | C198: SAC - Non Demand | D198: FIXED | E198: 2012-12-31 | F198: DEC | G198: 2012 | H198: 1213
A199: 8800 | B199: 8800 - Business - TOU | C199: SAC - Non Demand | D199: FIXED | E199: 2013-01-31 | F199: JAN | G199: 2013 | H199: 1213
A200: 8800 | B200: 8800 - Business - TOU | C200: SAC - Non Demand | D200: FIXED | E200: 2013-02-28 | F200: FEB | G200: 2013 | H200: 1213
... 297 more rows

Sheet NTCs per NMI
C2: =SUM(E2:J2) -> 1379583 | D2: Primary | E2: =SUMIF(E$31:E$60,"SAC",$C$31:$C$60) -> 1376204 | F2: =SUMIF(F$31:F$60,"SAC",$C$31:$C$60) -> 3323 | G2: 56 | H2: 0 | I2: 0 | J2: 0
C3: =SUM(E3:J3) -> 734143 | D3: CL | E3: =SUMIF(E$31:E$60,"CL",$C$31:$C$60) -> 125 | F3: =SUMIF(F$31:F$60,"CL",$C$31:$C$60) -> 717541 | G3: 16425 | H3: 52 | I3: 0 | J3: 0
C4: =SUM(E4:J4) -> 254496 | D4: FIT | E4: =SUMIF(E$31:E$60,"FIT",$C$31:$C$60) -> 0 | F4: =SUMIF(F$31:F$60,"FIT",$C$31:$C$60) -> 84706 | G4: 162890 | H4: 6882 | I4: 18 | J4: 0
B5: NTC's | C5: =SUM(C2:C4) -> 2368222
B7: =C7/$C$27 -> 0.4146159821 | C7: =C40 -> 570648 | D7: Primary Only
B8: =C8/$C$27 -> 0.3924112621 | C8: =C41 -> 540087 | D8: Primary + CL
B9: 0.005963690368 | C9: =C42 -> 8208 | D9: Primary + 2xCL
B10: 0.06154051829 | C10: =C32+C46 -> 84700 | D10: Primary + FiT
B11: 2.179711392e-06 | C11: =C36+C47 -> 3 | D11: Primary + 2xFiT
B12: 0.1181948502 | C12: =C33+C44 -> 162675 | D12: Primary + CL + FiT
B13: 0.004771388236 | C13: =C34+C43 -> 6567 | D13: Primary + 2xCL + FiT
B14: 7.265704639e-07 | C14: =C45 -> 1 | D14: Primary + CL + 2xFiT
B15: 1.453140928e-06 | C15: =C35 -> 2 | D15: Primary + 2xCL + 2xFiT
B16: 0.001015745509 | C16: =C48 -> 1398 | D16: 2x Primary
B17: 0.0009561667305 | C17: =C49 -> 1316 | D17: 2x Primary + CL
B18: 1.089855696e-05 | C18: =C50 -> 15 | D18: 2x Primary + CLx2
B19: 0.0001533063679 | C19: =C37+C53 -> 211 | D19: 2x Primary + FiT
B20: 0.0002245102733 | C20: =C38+C52 -> 309 | D20: 2x Primary + CL + FiT
B21: 5.812563711e-06 | C21: =C51 -> 8 | D21: 2x Primary + 2xCL + FiT
B22: 1.743769113e-05 | C22: =C54 -> 24 | D22: 3x Primary
B23: 1.525797974e-05 | C23: =C55 -> 21 | D23: 3x Primary + CL
B24: 2.179711392e-06 | C24: =C57 -> 3 | D24: 3x Primary + FiT
B25: 5.812563711e-06 | C25: =C39+C56 -> 8 | D25: 3x Primary + CL + FiT
B26: 9.082130799e-05 | C26: =C31 -> 125 | D26: CL Only
B27: NMI's | C27: =SUM(C7:C26) -> 1376329
B30: Date | C30: NMIs | D30: Tariffs | E30: NTC1 | F30: NTC2 | G30: NTC3 | H30: NTC4 | I30: NTC5 | J30: NTC6
B31: APR2014 | C31: 125 | D31: =9-COUNTBLANK(E31:J31) -> 4 | E31: CL
B32: APR2014 | C32: 18696 | D32: 2 | E32: SAC | F32: FIT
B33: APR2014 | C33: 31829 | D33: 3 | E33: SAC | F33: CL | G33: FIT
B34: APR2014 | C34: 975 | D34: 4 | E34: SAC | F34: CL | G34: CL | H34: FIT
B35: APR2014 | C35: 2 | D35: 5 | E35: SAC | F35: CL | G35: CL | H35: FIT | I35: FIT
B36: APR2014 | C36: 1 | D36: 3 | E36: SAC | F36: FIT | G36: FIT
B37: APR2014 | C37: 36 | D37: 3 | E37: SAC | F37: SAC | G37: FIT
B38: APR2014 | C38: 44 | D38: 4 | E38: SAC | F38: SAC | G38: CL | H38: FIT
B39: APR2014 | C39: 2 | D39: 5 | E39: SAC | F39: SAC | G39: SAC | H39: CL | I39: FIT
B40: APR2014 | C40: 570648 | D40: 1 | E40: SAC
B41: APR2014 | C41: 540087 | D41: 2 | E41: SAC | F41: CL
B42: APR2014 | C42: 8208 | D42: 3 | E42: SAC | F42: CL | G42: CL
B43: APR2014 | C43: 5592 | D43: 4 | E43: SAC | F43: CL | G43: CL | H43: FIT
B44: APR2014 | C44: 130846 | D44: 3 | E44: SAC | F44: CL | G44: FIT
B45: APR2014 | C45: 1 | D45: 4 | E45: SAC | F45: CL | G45: FIT | H45: FIT
B46: APR2014 | C46: 66004 | D46: 2 | E46: SAC | F46: FIT
B47: APR2014 | C47: 2 | D47: 3 | E47: SAC | F47: FIT | G47: FIT
B48: APR2014 | C48: 1398 | D48: 2 | E48: SAC | F48: SAC
B49: APR2014 | C49: 1316 | D49: 3 | E49: SAC | F49: SAC | G49: CL
B50: APR2014 | C50: 15 | D50: 4 | E50: SAC | F50: SAC | G50: CL | H50: CL
B51: APR2014 | C51: 8 | D51: 5 | E51: SAC | F51: SAC | G51: CL | H51: CL | I51: FIT
B52: APR2014 | C52: 265 | D52: 4 | E52: SAC | F52: SAC | G52: CL | H52: FIT
B53: APR2014 | C53: 175 | D53: 3 | E53: SAC | F53: SAC | G53: FIT
B54: APR2014 | C54: 24 | D54: 3 | E54: SAC | F54: SAC | G54: SAC
B55: APR2014 | C55: 21 | D55: 4 | E55: SAC | F55: SAC | G55: SAC | H55: CL
B56: APR2014 | C56: 6 | D56: 5 | E56: SAC | F56: SAC | G56: SAC | H56: CL | I56: FIT
B57: APR2014 | C57: 3 | D57: 4 | E57: SAC | F57: SAC | G57: SAC | H57: FIT
B58: APR2014 | C58: 1 | D58: =9-COUNTBLANK(E58:J58) -> 5 | E58: SACD | F58: CL
B59: APR2014 | C59: 3 | D59: =9-COUNTBLANK(E59:J59) -> 5 | E59: SACD | F59: FIT
B60: APR2014 | C60: 10 | D60: =9-COUNTBLANK(E60:J60) -> 5 | E60: SACD | F60: SAC

Sheet Summary by NTC
D3: Date
B4: Classification | C4: Values | D4: FEB2014 | E4: MAR2014 | F4: APR2014
B5: Bus | C5: NMI's | D5: 110269 | E5: 110339 | F5: 110370
C6: _MSC | D6: 4484191.205 | E6: 4488456.566 | F6: 4491112.136 | H6: =GETPIVOTDATA("_MSC",$B$3,"Date","FEB2014","Classification","Bus")/GETPIVOTDATA("NMI's",$B$3,"Date","FEB2014","Classification","Bus") -> 40.66592791 | I6: =GETPIVOTDATA("_MSC",$B$3,"Date","MAR2014","Classification","Bus")/GETPIVOTDATA("NMI's",$B$3,"Date","MAR2014","Classification","Bus") -> 40.67878598 | J6: =GETPIVOTDATA("_MSC",$B$3,"Date","APR2014","Classification","Bus")/GETPIVOTDATA("NMI's",$B$3,"Date","APR2014","Classification","Bus") -> 40.691421
B7: Res | C7: NMI's | D7: 1249675 | E7: 1251196 | F7: 1252751
C8: _MSC | D8: 64203754.06 | E8: 64354874.76 | F8: 64491491.66 | H8: =GETPIVOTDATA("_MSC",$B$3,"Date","FEB2014","Classification","Res")/GETPIVOTDATA("NMI's",$B$3,"Date","FEB2014","Classification","Res") -> 51.37636111 | I8: =GETPIVOTDATA("_MSC",$B$3,"Date","MAR2014","Classification","Res")/GETPIVOTDATA("NMI's",$B$3,"Date","MAR2014","Classification","Res") -> 51.4346871 | J8: =GETPIVOTDATA("_MSC",$B$3,"Date","APR2014","Classification","Res")/GETPIVOTDATA("NMI's",$B$3,"Date","APR2014","Classification","Res") -> 51.47989637
B9: Res / Bus | C9: NMI's | D9: 2712 | E9: 2707 | F9: 2694
C10: _MSC | D10: 248115.5592 | E10: 247802.2177 | F10: 246842.6093 | H10: =GETPIVOTDATA("_MSC",$B$3,"Date","FEB2014","Classification","Res / Bus")/GETPIVOTDATA("NMI's",$B$3,"Date","FEB2014","Classification","Res / Bus") -> 91.48803805 | I10: =GETPIVOTDATA("_MSC",$B$3,"Date","MAR2014","Classification","Res / Bus")/GETPIVOTDATA("NMI's",$B$3,"Date","MAR2014","Classification","Res / Bus") -> 91.54126993 | J10: =GETPIVOTDATA("_MSC",$B$3,"Date","APR2014","Classification","Res / Bus")/GETPIVOTDATA("NMI's",$B$3,"Date","APR2014","Classification","Res / Bus") -> 91.62680375
B11: CL | C11: NMI's | D11: 127 | E11: 125 | F11: 125
C12: _MSC | D12: 1492.288949 | E12: 1468.788336 | F12: 1468.788336
B13: Total NMI's | D13: 1362783 | E13: 1364367 | F13: 1365940
B14: Total _MSC | D14: 68937553.12 | E14: 69092602.33 | F14: 69230915.19

Sheet DATA by NTC
B2: Please note that this information does contain a minimal number of inactive but not decommissioned NMI's
B4: FEB2014 | D4: =SUMIF($A$26:$A$375,B4,$C$26:$C$375) -> 1362783
B5: MAR2014 | D5: =SUMIF($A$26:$A$375,B5,$C$26:$C$375) -> 1364367
B6: APR2014 | D6: =SUMIF($A$26:$A$375,B6,$C$26:$C$375) -> 1365940
A8: NTC | B8: NTC Desc | C8: MSC | E8: =B4 -> FEB2014 | F8: =B5 -> MAR2014 | G8: =B6 -> APR2014
A9: 7500 | B9: 7500 - Solar PV 2 (net with FIT) | C9: ='Price Path Calc'!$C$64 -> 24.70082298 | E9: =SUMIFS($C$26:$C$375,$A$26:$A$375,E$8,$F$26:$F$375,$A9)+SUMIFS($C$26:$C$375,$A$26:$A$375,E$8,$G$26:$G$375,$A9)+SUMIFS($C$26:$C$375,$A$26:$A$375,E$8,$H$26:$H$375,$A9)+SUMIFS($C$26:$C$375,$A$26:$A$375,E$8,$I$26:$I$375,$A9)+SUMIFS($C$26:$C$375,$A$26:$A$375,E$8,$J$26:$J$375,$A9)+SUMIFS($C$26:$C$375,$A$26:$A$375,E$8,$K$26:$K$375,$A9) -> 44065 | F9: 48147 | G9: 51585
A10: 7600 | B10: 7600 - Residential - PeakSmart | C10: ='Price Path Calc'!$C$62 -> 35.28688997 | E10: 0 | F10: 0 | G10: 0
A11: 8300 | B11: 8300 - Demand Small | E11: 14 | F11: 14 | G11: 14 | H11: is a subset of 8300 as is only those that have 8300 in combination with SACND categories
A12: 8400 | B12: 8400 - Residential Flat | C12: ='Price Path Calc'!$C$62 -> 35.28688997 | E12: 1252233 | F12: 1253743 | G12: 1255282
A13: 8500 | B13: 8500 - Business Flat | C13: ='Price Path Calc'!$C$62 -> 35.28688997 | E13: 99165 | F13: 99195 | G13: 99209
A14: 8800 | B14: 8800 - Business - TOU | C14: ='Price Path Calc'!$C$62 -> 35.28688997 | E14: 14476 | F14: 14508 | G14: 14510
A15: 8900 | B15: 8900 - Residential TOU | C15: ='Price Path Calc'!$C$62 -> 35.28688997 | E15: 154 | F15: 160 | G15: 163
A16: 9000 | B16: 9000 - Controlled Load 1 (super economy) | C16: ='Price Path Calc'!$C$63 -> 10.58606699 | E16: 214458 | F16: 214578 | G16: 214673
A17: 9100 | B17: 9100 - Controlled Load 2 (economy) | C17: ='Price Path Calc'!$C$63 -> 10.58606699 | E17: 519500 | F17: 519431 | G17: 519469 | J17: 1
A18: 9700 | B18: 9700 - Solar PV (gross) | C18: ='Price Path Calc'!$C$64 -> 24.70082298 | E18: 496 | F18: 495 | G18: 491
A19: 9800 | B19: 9800 - Solar PV (net) | C19: ='Price Path Calc'!$C$64 -> 24.70082298 | E19: 549 | F19: 587 | G19: 623
A20: 9900 | B20: 9900 - Solar PV (net with FIT) | C20: ='Price Path Calc'!$C$64 -> 24.70082298 | E20: 203242 | F20: 202502 | G20: 201794
E21: =SUM(E9:E20) -> 2348352 | F21: =SUM(F9:F20) -> 2353360 | G21: =SUM(G9:G20) -> 2357813
A25: Date | B25: Classification | C25: NMIs | D25: NTC Count | E25: Total Tariffs | F25: NTC1 | G25: NTC2 | H25: NTC3 | I25: NTC4 | J25: NTC5 | K25: MSC | L25: Tot MSC
A26: MAR2014 | B26: Res / Bus | C26: 591 | D26: 2 | E26: =C26*D26 -> 1182 | F26: 8400 | G26: 8500 | K26: =IF(ISERROR(VLOOKUP(F26,$A$9:$C$20,3,FALSE)),0,VLOOKUP(F26,$A$9:$C$20,3,FALSE))+IF(ISERROR(VLOOKUP(G26,$A$9:$C$20,3,FALSE)),0,VLOOKUP(G26,$A$9:$C$20,3,FALSE))+IF(ISERROR(VLOOKUP(H26,$A$9:$C$20,3,FALSE)),0,VLOOKUP(H26,$A$9:$C$20,3,FALSE))+IF(ISERROR(VLOOKUP(I26,$A$9:$C$20,3,FALSE)),0,VLOOKUP(I26,$A$9:$C$20,3,FALSE))+IF(ISERROR(VLOOKUP(J26,$A$9:$C$20,3,FALSE)),0,VLOOKUP(J26,$A$9:$C$20,3,FALSE)) -> 70.57377995 | L26: =C26*K26 -> 41709.10395
A27: MAR2014 | B27: Res / Bus | C27: 24 | D27: 3 | E27: =C27*D27 -> 72 | F27: 8400 | G27: 8500 | H27: 8800 | K27: =IF(ISERROR(VLOOKUP(F27,$A$9:$C$20,3,FALSE)),0,VLOOKUP(F27,$A$9:$C$20,3,FALSE))+IF(ISERROR(VLOOKUP(G27,$A$9:$C$20,3,FALSE)),0,VLOOKUP(G27,$A$9:$C$20,3,FALSE))+IF(ISERROR(VLOOKUP(H27,$A$9:$C$20,3,FALSE)),0,VLOOKUP(H27,$A$9:$C$20,3,FALSE))+IF(ISERROR(VLOOKUP(I27,$A$9:$C$20,3,FALSE)),0,VLOOKUP(I27,$A$9:$C$20,3,FALSE))+IF(ISERROR(VLOOKUP(J27,$A$9:$C$20,3,FALSE)),0,VLOOKUP(J27,$A$9:$C$20,3,FALSE)) -> 105.8606699 | L27: =C27*K27 -> 2540.656078
A28: MAR2014 | B28: Res / Bus | C28: 9 | D28: 4 | E28: 36 | F28: 8400 | G28: 8500 | H28: 8800 | I28: 9000 | K28: 116.4467369 | L28: 1048.020632
A29: MAR2014 | B29: Res / Bus | C29: 1 | D29: 5 | E29: 5 | F29: 8400 | G29: 8500 | H29: 8800 | I29: 9000 | J29: 9800 | K29: 141.1475599 | L29: 141.1475599
A30: MAR2014 | B30: Res / Bus | C30: 3 | D30: 5 | E30: 15 | F30: 8400 | G30: 8500 | H30: 8800 | I30: 9000 | J30: 9900 | K30: 141.1475599 | L30: 423.4426797
A31: MAR2014 | B31: Res / Bus | C31: 12 | D31: 4 | E31: 48 | F31: 8400 | G31: 8500 | H31: 8800 | I31: 9100 | K31: 116.4467369 | L31: 1397.360843
A32: MAR2014 | B32: Res / Bus | C32: 2 | D32: 5 | E32: 10 | F32: 8400 | G32: 8500 | H32: 8800 | I32: 9100 | J32: 9900 | K32: 141.1475599 | L32: 282.2951198
A33: MAR2014 | B33: Res / Bus | C33: 3 | D33: 4 | E33: 12 | F33: 8400 | G33: 8500 | H33: 8800 | I33: 9900 | K33: 130.5614929 | L33: 391.6844787
A34: MAR2014 | B34: Res / Bus | C34: 242 | D34: 3 | E34: 726 | F34: 8400 | G34: 8500 | H34: 9000 | K34: 81.15984694 | L34: 19640.68296
A35: MAR2014 | B35: Res / Bus | C35: 9 | D35: 4 | E35: 36 | F35: 8400 | G35: 8500 | H35: 9000 | I35: 9100 | K35: 91.74591393 | L35: 825.7132254
A36: MAR2014 | B36: Res / Bus | C36: 5 | D36: 5 | E36: 25 | F36: 8400 | G36: 8500 | H36: 9000 | I36: 9100 | J36: 9900 | K36: 116.4467369 | L36: 582.2336846
A37: MAR2014 | B37: Res / Bus | C37: 47 | D37: 4 | E37: 188 | F37: 8400 | G37: 8500 | H37: 9000 | I37: 9900 | K37: 105.8606699 | L37: 4975.451486
A38: MAR2014 | B38: Res / Bus | C38: 711 | D38: 3 | E38: 2133 | F38: 8400 | G38: 8500 | H38: 9100 | K38: 81.15984694 | L38: 57704.65118
A39: MAR2014 | B39: Res / Bus | C39: 1 | D39: 4 | E39: 4 | F39: 8400 | G39: 8500 | H39: 9100 | I39: 9700 | K39: 105.8606699 | L39: 105.8606699
A40: MAR2014 | B40: Res / Bus | C40: 113 | D40: 4 | E40: 452 | F40: 8400 | G40: 8500 | H40: 9100 | I40: 9900 | K40: 105.8606699 | L40: 11962.2557
A41: MAR2014 | B41: Res / Bus | C41: 4 | D41: 3 | E41: 12 | F41: 8400 | G41: 8500 | H41: 9800 | K41: 95.27460293 | L41: 381.0984117
A42: MAR2014 | B42: Res / Bus | C42: 111 | D42: 3 | E42: 333 | F42: 8400 | G42: 8500 | H42: 9900 | K42: 95.27460293 | L42: 10575.48093
A43: MAR2014 | B43: Res / Bus | C43: 253 | D43: 2 | E43: 506 | F43: 8400 | G43: 8800 | K43: 70.57377995 | L43: 17855.16633
A44: MAR2014 | B44: Res / Bus | C44: 87 | D44: 3 | E44: 261 | F44: 8400 | G44: 8800 | H44: 9000 | K44: 81.15984694 | L44: 7060.906684
A45: MAR2014 | B45: Res / Bus | C45: 6 | D45: 4 | E45: 24 | F45: 8400 | G45: 8800 | H45: 9000 | I45: 9100 | K45: 91.74591393 | L45: 550.4754836
A46: MAR2014 | B46: Res / Bus | C46: 4 | D46: 5 | E46: 20 | F46: 8400 | G46: 8800 | H46: 9000 | I46: 9100 | J46: 9900 | K46: 116.4467369 | L46: 465.7869477
A47: MAR2014 | B47: Res / Bus | C47: 1 | D47: 4 | E47: 4 | F47: 8400 | G47: 8800 | H47: 9000 | I47: 9800 | K47: 105.8606699 | L47: 105.8606699
A48: MAR2014 | B48: Res / Bus | C48: 33 | D48: 4 | E48: 132 | F48: 8400 | G48: 8800 | H48: 9000 | I48: 9900 | K48: 105.8606699 | L48: 3493.402107
A49: MAR2014 | B49: Res / Bus | C49: 250 | D49: 3 | E49: 750 | F49: 8400 | G49: 8800 | H49: 9100 | K49: 81.15984694 | L49: 20289.96174
A50: MAR2014 | B50: Res / Bus | C50: 3 | D50: 4 | E50: 12 | F50: 8400 | G50: 8800 | H50: 9100 | I50: 9800 | K50: 105.8606699 | L50: 317.5820098
A51: MAR2014 | B51: Res / Bus | C51: 67 | D51: 4 | E51: 268 | F51: 8400 | G51: 8800 | H51: 9100 | I51: 9900 | K51: 105.8606699 | L51: 7092.664885
A52: MAR2014 | B52: Res / Bus | C52: 2 | D52: 3 | E52: 6 | F52: 8400 | G52: 8800 | H52: 9800 | K52: 95.27460293 | L52: 190.5492059
A53: MAR2014 | B53: Res / Bus | C53: 41 | D53: 3 | E53: 123 | F53: 8400 | G53: 8800 | H53: 9900 | K53: 95.27460293 | L53: 3906.25872
A54: MAR2014 | B54: Res | C54: 143645 | D54: 2 | E54: 287290 | F54: 8400 | G54: 9000 | K54: 45.87295697 | L54: 6589420.904
A55: MAR2014 | B55: Res | C55: 8208 | D55: 3 | E55: 24624 | F55: 8400 | G55: 9000 | H55: 9100 | K55: 56.45902396 | L55: 463415.6687
A56: MAR2014 | B56: Res | C56: 7 | D56: 4 | E56: 28 | F56: 8400 | G56: 9000 | H56: 9100 | I56: 9700 | K56: 81.15984694 | L56: 568.1189286
A57: MAR2014 | B57: Res | C57: 7 | D57: 4 | E57: 28 | F57: 8400 | G57: 9000 | H57: 9100 | I57: 9800 | K57: 81.15984694 | L57: 568.1189286
A58: MAR2014 | B58: Res | C58: 5579 | D58: 4 | E58: 22316 | F58: 8400 | G58: 9000 | H58: 9100 | I58: 9900 | K58: 81.15984694 | L58: 452790.7861
A59: MAR2014 | B59: Res | C59: 60 | D59: 3 | E59: 180 | F59: 8400 | G59: 9000 | H59: 9700 | K59: 70.57377995 | L59: 4234.426797
A60: MAR2014 | B60: Res | C60: 1 | D60: 4 | E60: 4 | F60: 8400 | G60: 9000 | H60: 9700 | I60: 9900 | K60: 95.27460293 | L60: 95.27460293
A61: MAR2014 | B61: Res | C61: 38 | D61: 3 | E61: 114 | F61: 8400 | G61: 9000 | H61: 9800 | K61: 70.57377995 | L61: 2681.803638
A62: MAR2014 | B62: Res | C62: 44996 | D62: 3 | E62: 134988 | F62: 8400 | G62: 9000 | H62: 9900 | K62: 70.57377995 | L62: 3175537.803
A63: MAR2014 | B63: Res | C63: 394489 | D63: 2 | E63: 788978 | F63: 8400 | G63: 9100 | K63: 45.87295697 | L63: 18096376.92
A64: MAR2014 | B64: Res | C64: 170 | D64: 3 | E64: 510 | F64: 8400 | G64: 9100 | H64: 9700 | K64: 70.57377995 | L64: 11997.54259
A65: MAR2014 | B65: Res | C65: 81 | D65: 3 | E65: 243 | F65: 8400 | G65: 9100 | H65: 9800 | K65: 70.57377995 | L65: 5716.476176
A66: MAR2014 | B66: Res | C66: 85505 | D66: 3 | E66: 256515 | F66: 8400 | G66: 9100 | H66: 9900 | K66: 70.57377995 | L66: 6034411.055
A67: MAR2014 | B67: Res | C67: 244 | D67: 2 | E67: 488 | F67: 8400 | G67: 9700 | K67: 59.98771296 | L67: 14637.00196
A68: MAR2014 | B68: Res | C68: 2 | D68: 3 | E68: 6 | F68: 8400 | G68: 9700 | H68: 9900 | K68: 84.68853594 | L68: 169.3770719
A69: MAR2014 | B69: Res | C69: 126 | D69: 2 | E69: 252 | F69: 8400 | G69: 9800 | K69: 59.98771296 | L69: 7558.451833
A70: MAR2014 | B70: Res | C70: 63362 | D70: 2 | E70: 126724 | F70: 8400 | G70: 9900 | K70: 59.98771296 | L70: 3800941.468
A71: MAR2014 | B71: Bus | C71: 90812 | D71: 1 | E71: 90812 | F71: 8500 | K71: 35.28688997 | L71: 3204473.052
A72: MAR2014 | B72: Bus | C72: 554 | D72: 2 | E72: 1108 | F72: 8500 | G72: 8800 | K72: 70.57377995 | L72: 39097.87409
A73: MAR2014 | B73: Bus | C73: 6 | D73: 3 | E73: 18 | F73: 8500 | G73: 8800 | H73: 9000 | K73: 81.15984694 | L73: 486.9590816
A74: MAR2014 | B74: Bus | C74: 30 | D74: 3 | E74: 90 | F74: 8500 | G74: 8800 | H74: 9100 | K74: 81.15984694 | L74: 2434.795408
A75: MAR2014 | B75: Bus | C75: 1 | D75: 4 | E75: 4 | F75: 8500 | G75: 8800 | H75: 9100 | I75: 9800 | K75: 105.8606699 | L75: 105.8606699
A76: MAR2014 | B76: Bus | C76: 1 | D76: 4 | E76: 4 | F76: 8500 | G76: 8800 | H76: 9100 | I76: 9900 | K76: 105.8606699 | L76: 105.8606699
A77: MAR2014 | B77: Bus | C77: 2 | D77: 3 | E77: 6 | F77: 8500 | G77: 8800 | H77: 9800 | K77: 95.27460293 | L77: 190.5492059
A78: MAR2014 | B78: Bus | C78: 14 | D78: 3 | E78: 42 | F78: 8500 | G78: 8800 | H78: 9900 | K78: 95.27460293 | L78: 1333.844441
A79: MAR2014 | B79: Bus | C79: 482 | D79: 2 | E79: 964 | F79: 8500 | G79: 9000 | K79: 45.87295697 | L79: 22110.76526
A80: MAR2014 | B80: Bus | C80: 9 | D80: 3 | E80: 27 | F80: 8500 | G80: 9000 | H80: 9100 | K80: 56.45902396 | L80: 508.1312156
A81: MAR2014 | B81: Bus | C81: 3 | D81: 4 | E81: 12 | F81: 8500 | G81: 9000 | H81: 9100 | I81: 9900 | K81: 81.15984694 | L81: 243.4795408
A82: MAR2014 | B82: Bus | C82: 5 | D82: 3 | E82: 15 | F82: 8500 | G82: 9000 | H82: 9800 | K82: 70.57377995 | L82: 352.8688997
A83: MAR2014 | B83: Bus | C83: 91 | D83: 3 | E83: 273 | F83: 8500 | G83: 9000 | H83: 9900 | K83: 70.57377995 | L83: 6422.213975
A84: MAR2014 | B84: Bus | C84: 2436 | D84: 2 | E84: 4872 | F84: 8500 | G84: 9100 | K84: 45.87295697 | L84: 111746.5232
A85: MAR2014 | B85: Bus | C85: 1 | D85: 3 | E85: 3 | F85: 8500 | G85: 9100 | H85: 9700 | K85: 70.57377995 | L85: 70.57377995
A86: MAR2014 | B86: Bus | C86: 18 | D86: 3 | E86: 54 | F86: 8500 | G86: 9100 | H86: 9800 | K86: 70.57377995 | L86: 1270.328039
A87: MAR2014 | B87: Bus | C87: 201 | D87: 3 | E87: 603 | F87: 8500 | G87: 9100 | H87: 9900 | K87: 70.57377995 | L87: 14185.32977
A88: MAR2014 | B88: Bus | C88: 5 | D88: 2 | E88: 10 | F88: 8500 | G88: 9700 | K88: 59.98771296 | L88: 299.9385648
A89: MAR2014 | B89: Bus | C89: 230 | D89: 2 | E89: 460 | F89: 8500 | G89: 9800 | K89: 59.98771296 | L89: 13797.17398
A90: MAR2014 | B90: Bus | C90: 1878 | D90: 2 | E90: 3756 | F90: 8500 | G90: 9900 | K90: 59.98771296 | L90: 112656.9249
A91: MAR2014 | B91: Bus | C91: 4 | D91: 1 | E91: =C91*D91 -> 4 | F91: 8600 | K91: =IF(ISERROR(VLOOKUP(F91,$A$9:$C$20,3,FALSE)),0,VLOOKUP(F91,$A$9:$C$20,3,FALSE))+IF(ISERROR(VLOOKUP(G91,$A$9:$C$20,3,FALSE)),0,VLOOKUP(G91,$A$9:$C$20,3,FALSE))+IF(ISERROR(VLOOKUP(H91,$A$9:$C$20,3,FALSE)),0,VLOOKUP(H91,$A$9:$C$20,3,FALSE))+IF(ISERROR(VLOOKUP(I91,$A$9:$C$20,3,FALSE)),0,VLOOKUP(I91,$A$9:$C$20,3,FALSE))+IF(ISERROR(VLOOKUP(J91,$A$9:$C$20,3,FALSE)),0,VLOOKUP(J91,$A$9:$C$20,3,FALSE)) -> 0 | L91: =C91*K91 -> 0
A92: MAR2014 | B92: Bus | C92: 1 | D92: 1 | E92: 1 | F92: 8700 | K92: 0 | L92: 0
A93: MAR2014 | B93: Bus | C93: 1 | D93: 2 | E93: 2 | F93: 8700 | G93: 8800 | K93: 35.28688997 | L93: 35.28688997
A94: MAR2014 | B94: Bus | C94: 11936 | D94: 1 | E94: 11936 | F94: 8800 | K94: 35.28688997 | L94: 421184.3187
A95: MAR2014 | B95: Bus | C95: 100 | D95: 2 | E95: 200 | F95: 8800 | G95: 9000 | K95: 45.87295697 | L95: 4587.295697
A96: MAR2014 | B96: Bus | C96: 4 | D96: 3 | E96: 12 | F96: 8800 | G96: 9000 | H96: 9100 | K96: 56.45902396 | L96: 225.8360958
A97: MAR2014 | B97: Bus | C97: 3 | D97: 4 | E97: 12 | F97: 8800 | G97: 9000 | H97: 9100 | I97: 9900 | K97: 81.15984694 | L97: 243.4795408
A98: MAR2014 | B98: Bus | C98: 26 | D98: 3 | E98: 78 | F98: 8800 | G98: 9000 | H98: 9900 | K98: 70.57377995 | L98: 1834.918279
A99: MAR2014 | B99: Bus | C99: 488 | D99: 2 | E99: 976 | F99: 8800 | G99: 9100 | K99: 45.87295697 | L99: 22386.003
A100: MAR2014 | B100: Bus | C100: 10 | D100: 3 | E100: 30 | F100: 8800 | G100: 9100 | H100: 9800 | K100: 70.57377995 | L100: 705.7377995
A101: MAR2014 | B101: Bus | C101: 63 | D101: 3 | E101: 189 | F101: 8800 | G101: 9100 | H101: 9900 | K101: 70.57377995 | L101: 4446.148137
A102: MAR2014 | B102: Bus | C102: 1 | D102: 2 | E102: 2 | F102: 8800 | G102: 9700 | K102: 59.98771296 | L102: 59.98771296
A103: MAR2014 | B103: Bus | C103: 57 | D103: 2 | E103: 114 | F103: 8800 | G103: 9800 | K103: 59.98771296 | L103: 3419.299639
A104: MAR2014 | B104: Bus | C104: 328 | D104: 2 | E104: 656 | F104: 8800 | G104: 9900 | K104: 59.98771296 | L104: 19675.96985
A105: MAR2014 | B105: Res | C105: 109 | D105: 1 | E105: 109 | F105: 8900 | K105: 35.28688997 | L105: 3846.271007
A106: MAR2014 | B106: Res | C106: 10 | D106: 2 | E106: 20 | F106: 8900 | G106: 9000 | K106: 45.87295697 | L106: 458.7295697
A107: MAR2014 | B107: Res | C107: 13 | D107: 2 | E107: 26 | F107: 8900 | G107: 9100 | K107: 45.87295697 | L107: 596.3484406
A108: MAR2014 | B108: Res | C108: 9 | D108: 3 | E108: 27 | F108: 8900 | G108: 9100 | H108: 9900 | K108: 70.57377995 | L108: 635.1640195
A109: MAR2014 | B109: Res | C109: 9 | D109: 2 | E109: 18 | F109: 8900 | G109: 9900 | K109: 59.98771296 | L109: 539.8894166
A110: MAR2014 | B110: CL | C110: 15 | D110: 1 | E110: 15 | F110: 9000 | K110: 10.58606699 | L110: 158.7910049
A111: MAR2014 | B111: CL | C111: 110 | D111: 1 | E111: 110 | F111: 9100 | K111: 10.58606699 | L111: 1164.467369
A112: APR2014 | B112: Res | C112: 18223 | D112: 2 | E112: 36446 | F112: 7500 | G112: 8400 | K112: 59.98771296 | L112: 1093156.093
A113: APR2014 | B113: Res / Bus | C113: 21 | D113: 3 | E113: 63 | F113: 7500 | G113: 8400 | H113: 8500 | K113: 95.27460293 | L113: 2000.766662
A114: APR2014 | B114: Res / Bus | C114: 2 | D114: 5 | E114: 10 | F114: 7500 | G114: 8400 | H114: 8500 | I114: 8800 | J114: 9100 | K114: 141.1475599 | L114: 282.2951198
A115: APR2014 | B115: Res / Bus | C115: 6 | D115: 4 | E115: 24 | F115: 7500 | G115: 8400 | H115: 8500 | I115: 9000 | K115: 105.8606699 | L115: 635.1640195
A116: APR2014 | B116: Res / Bus | C116: 23 | D116: 4 | E116: 92 | F116: 7500 | G116: 8400 | H116: 8500 | I116: 9100 | K116: 105.8606699 | L116: 2434.795408
A117: APR2014 | B117: Res / Bus | C117: 12 | D117: 3 | E117: 36 | F117: 7500 | G117: 8400 | H117: 8800 | K117: 95.27460293 | L117: 1143.295235
A118: APR2014 | B118: Res / Bus | C118: 6 | D118: 4 | E118: 24 | F118: 7500 | G118: 8400 | H118: 8800 | I118: 9000 | K118: 105.8606699 | L118: 635.1640195
A119: APR2014 | B119: Res / Bus | C119: 8 | D119: 4 | E119: 32 | F119: 7500 | G119: 8400 | H119: 8800 | I119: 9100 | K119: 105.8606699 | L119: 846.8853594
A120: APR2014 | B120: Res | C120: 10617 | D120: 3 | E120: 31851 | F120: 7500 | G120: 8400 | H120: 9000 | K120: 70.57377995 | L120: 749281.8217
A121: APR2014 | B121: Res | C121: 972 | D121: 4 | E121: 3888 | F121: 7500 | G121: 8400 | H121: 9000 | I121: 9100 | K121: 81.15984694 | L121: 78887.37123
A122: APR2014 | B122: Res | C122: 2 | D122: 5 | E122: 10 | F122: 7500 | G122: 8400 | H122: 9000 | I122: 9100 | J122: 9700 | K122: 105.8606699 | L122: 211.7213398
A123: APR2014 | B123: Res | C123: 21112 | D123: 3 | E123: 63336 | F123: 7500 | G123: 8400 | H123: 9100 | K123: 70.57377995 | L123: 1489953.642
A124: APR2014 | B124: Res | C124: 1 | D124: 3 | E124: 3 | F124: 7500 | G124: 8400 | H124: 9700 | K124: 84.68853594 | L124: 84.68853594
A125: APR2014 | B125: Bus | C125: 421 | D125: 2 | E125: 842 | F125: 7500 | G125: 8500 | K125: 59.98771296 | L125: 25254.82715
A126: APR2014 | B126: Bus | C126: 3 | D126: 3 | E126: 9 | F126: 7500 | G126: 8500 | H126: 8800 | K126: 95.27460293 | L126: 285.8238088
A127: APR2014 | B127: Bus | C127: 1 | D127: 4 | E127: 4 | F127: 7500 | G127: 8500 | H127: 8800 | I127: 9100 | K127: 105.8606699 | L127: 105.8606699
A128: APR2014 | B128: Bus | C128: 28 | D128: 3 | E128: 84 | F128: 7500 | G128: 8500 | H128: 9000 | K128: 70.57377995 | L128: 1976.065839
A129: APR2014 | B129: Bus | C129: 2 | D129: 4 | E129: 8 | F129: 7500 | G129: 8500 | H129: 9000 | I129: 9100 | K129: 81.15984694 | L129: 162.3196939
A130: APR2014 | B130: Bus | C130: 60 | D130: 3 | E130: 180 | F130: 7500 | G130: 8500 | H130: 9100 | K130: 70.57377995 | L130: 4234.426797
A131: APR2014 | B131: Bus | C131: 44 | D131: 2 | E131: 88 | F131: 7500 | G131: 8800 | K131: 59.98771296 | L131: 2639.45937
A132: APR2014 | B132: Bus | C132: 5 | D132: 3 | E132: 15 | F132: 7500 | G132: 8800 | H132: 9000 | K132: 70.57377995 | L132: 352.8688997
A133: APR2014 | B133: Bus | C133: 5 | D133: 3 | E133: 15 | F133: 7500 | G133: 8800 | H133: 9100 | K133: 70.57377995 | L133: 352.8688997
A134: APR2014 | B134: Res | C134: 8 | D134: 2 | E134: 16 | F134: 7500 | G134: 8900 | K134: 59.98771296 | L134: 479.9017037
A135: APR2014 | B135: Res | C135: 1 | D135: 4 | E135: 4 | F135: 7500 | G135: 8900 | H135: 9000 | I135: 9100 | K135: 81.15984694 | L135: 81.15984694
A136: APR2014 | B136: Res | C136: 2 | D136: 3 | E136: 6 | F136: 7500 | G136: 8900 | H136: 9100 | K136: 70.57377995 | L136: 141.1475599
A137: APR2014 | B137: Res / Bus | C137: 2 | D137: 2 | E137: 4 | F137: 8300 | G137: 8400 | K137: 35.28688997 | L137: 70.57377995
A138: APR2014 | B138: Bus | C138: 8 | D138: 2 | E138: 16 | F138: 8300 | G138: 8500 | K138: 35.28688997 | L138: 282.2951198
A139: APR2014 | B139: Bus | C139: 1 | D139: 2 | E139: 2 | F139: 8300 | G139: 9000 | K139: 10.58606699 | L139: 10.58606699
A140: APR2014 | B140: Bus | C140: 1 | D140: 2 | E140: 2 | F140: 8300 | G140: 9800 | K140: 24.70082298 | L140: 24.70082298
A141: APR2014 | B141: Bus | C141: 2 | D141: 2 | E141: 4 | F141: 8300 | G141: 9900 | K141: 24.70082298 | L141: 49.40164596
A142: APR2014 | B142: Res | C142: 457408 | D142: 1 | E142: 457408 | F142: 8400 | K142: 35.28688997 | L142: 16140505.77
A143: APR2014 | B143: Res / Bus | C143: 586 | D143: 2 | E143: 1172 | F143: 8400 | G143: 8500 | K143: 70.57377995 | L143: 41356.23505
A144: APR2014 | B144: Res / Bus | C144: 24 | D144: 3 | E144: =C144*D144 -> 72 | F144: 8400 | G144: 8500 | H144: 8800 | K144: 105.8606699 | L144: 2540.656078
A145: APR2014 | B145: Res / Bus | C145: 9 | D145: 4 | E145: 36 | F145: 8400 | G145: 8500 | H145: 8800 | I145: 9000 | K145: 116.4467369 | L145: 1048.020632
A146: APR2014 | B146: Res / Bus | C146: 1 | D146: 5 | E146: 5 | F146: 8400 | G146: 8500 | H146: 8800 | I146: 9000 | J146: 9800 | K146: 141.1475599 | L146: 141.1475599
A147: APR2014 | B147: Res / Bus | C147: 3 | D147: 5 | E147: 15 | F147: 8400 | G147: 8500 | H147: 8800 | I147: 9000 | J147: 9900 | K147: 141.1475599 | L147: 423.4426797
A148: APR2014 | B148: Res / Bus | C148: 12 | D148: 4 | E148: 48 | F148: 8400 | G148: 8500 | H148: 8800 | I148: 9100 | K148: 116.4467369 | L148: 1397.360843
A149: APR2014 | B149: Res / Bus | C149: 2 | D149: 5 | E149: 10 | F149: 8400 | G149: 8500 | H149: 8800 | I149: 9100 | J149: 9900 | K149: 141.1475599 | L149: 282.2951198
A150: APR2014 | B150: Res / Bus | C150: 3 | D150: 4 | E150: 12 | F150: 8400 | G150: 8500 | H150: 8800 | I150: 9900 | K150: 130.5614929 | L150: 391.6844787
A151: APR2014 | B151: Res / Bus | C151: 241 | D151: 3 | E151: 723 | F151: 8400 | G151: 8500 | H151: 9000 | K151: 81.15984694 | L151: 19559.52311
A152: APR2014 | B152: Res / Bus | C152: 9 | D152: 4 | E152: 36 | F152: 8400 | G152: 8500 | H152: 9000 | I152: 9100 | K152: 91.74591393 | L152: 825.7132254
A153: APR2014 | B153: Res / Bus | C153: 5 | D153: 5 | E153: 25 | F153: 8400 | G153: 8500 | H153: 9000 | I153: 9100 | J153: 9900 | K153: 116.4467369 | L153: 582.2336846
A154: APR2014 | B154: Res / Bus | C154: 47 | D154: 4 | E154: 188 | F154: 8400 | G154: 8500 | H154: 9000 | I154: 9900 | K154: 105.8606699 | L154: 4975.451486
A155: APR2014 | B155: Res / Bus | C155: 704 | D155: 3 | E155: 2112 | F155: 8400 | G155: 8500 | H155: 9100 | K155: =IF(ISERROR(VLOOKUP(F155,$A$9:$C$20,3,FALSE)),0,VLOOKUP(F155,$A$9:$C$20,3,FALSE))+IF(ISERROR(VLOOKUP(G155,$A$9:$C$20,3,FALSE)),0,VLOOKUP(G155,$A$9:$C$20,3,FALSE))+IF(ISERROR(VLOOKUP(H155,$A$9:$C$20,3,FALSE)),0,VLOOKUP(H155,$A$9:$C$20,3,FALSE))+IF(ISERROR(VLOOKUP(I155,$A$9:$C$20,3,FALSE)),0,VLOOKUP(I155,$A$9:$C$20,3,FALSE))+IF(ISERROR(VLOOKUP(J155,$A$9:$C$20,3,FALSE)),0,VLOOKUP(J155,$A$9:$C$20,3,FALSE)) -> 81.15984694 | L155: =C155*K155 -> 57136.53225
A156: APR2014 | B156: Res / Bus | C156: 1 | D156: 4 | E156: 4 | F156: 8400 | G156: 8500 | H156: 9100 | I156: 9700 | K156: 105.8606699 | L156: 105.8606699
A157: APR2014 | B157: Res / Bus | C157: 111 | D157: 4 | E157: 444 | F157: 8400 | G157: 8500 | H157: 9100 | I157: 9900 | K157: 105.8606699 | L157: 11750.53436
A158: APR2014 | B158: Res / Bus | C158: 4 | D158: 3 | E158: 12 | F158: 8400 | G158: 8500 | H158: 9800 | K158: 95.27460293 | L158: 381.0984117
A159: APR2014 | B159: Res / Bus | C159: 111 | D159: 3 | E159: 333 | F159: 8400 | G159: 8500 | H159: 9900 | K159: 95.27460293 | L159: 10575.48093
A160: APR2014 | B160: Res / Bus | C160: 249 | D160: 2 | E160: 498 | F160: 8400 | G160: 8800 | K160: 70.57377995 | L160: 17572.87121
A161: APR2014 | B161: Res / Bus | C161: 85 | D161: 3 | E161: 255 | F161: 8400 | G161: 8800 | H161: 9000 | K161: 81.15984694 | L161: 6898.58699
A162: APR2014 | B162: Res / Bus | C162: 6 | D162: 4 | E162: 24 | F162: 8400 | G162: 8800 | H162: 9000 | I162: 9100 | K162: 91.74591393 | L162: 550.4754836
A163: APR2014 | B163: Res / Bus | C163: 3 | D163: 5 | E163: 15 | F163: 8400 | G163: 8800 | H163: 9000 | I163: 9100 | J163: 9900 | K163: 116.4467369 | L163: 349.3402107
A164: APR2014 | B164: Res / Bus | C164: 1 | D164: 4 | E164: 4 | F164: 8400 | G164: 8800 | H164: 9000 | I164: 9800 | K164: 105.8606699 | L164: 105.8606699
A165: APR2014 | B165: Res / Bus | C165: 33 | D165: 4 | E165: 132 | F165: 8400 | G165: 8800 | H165: 9000 | I165: 9900 | K165: 105.8606699 | L165: 3493.402107
A166: APR2014 | B166: Res / Bus | C166: 250 | D166: 3 | E166: 750 | F166: 8400 | G166: 8800 | H166: 9100 | K166: 81.15984694 | L166: 20289.96174
A167: APR2014 | B167: Res / Bus | C167: 3 | D167: 4 | E167: 12 | F167: 8400 | G167: 8800 | H167: 9100 | I167: 9800 | K167: 105.8606699 | L167: 317.5820098
A168: APR2014 | B168: Res / Bus | C168: 67 | D168: 4 | E168: 268 | F168: 8400 | G168: 8800 | H168: 9100 | I168: 9900 | K168: 105.8606699 | L168: 7092.664885
A169: APR2014 | B169: Res / Bus | C169: 3 | D169: 3 | E169: 9 | F169: 8400 | G169: 8800 | H169: 9800 | K169: 95.27460293 | L169: 285.8238088
A170: APR2014 | B170: Res / Bus | C170: 41 | D170: 3 | E170: 123 | F170: 8400 | G170: 8800 | H170: 9900 | K170: 95.27460293 | L170: 3906.25872
A171: APR2014 | B171: Res | C171: 143114 | D171: 2 | E171: 286228 | F171: 8400 | G171: 9000 | K171: 45.87295697 | L171: 6565062.363
A172: APR2014 | B172: Res | C172: 8195 | D172: 3 | E172: 24585 | F172: 8400 | G172: 9000 | H172: 9100 | K172: 56.45902396 | L172: 462681.7013
A173: APR2014 | B173: Res | C173: 7 | D173: 4 | E173: 28 | F173: 8400 | G173: 9000 | H173: 9100 | I173: 9700 | K173: 81.15984694 | L173: 568.1189286
A174: APR2014 | B174: Res | C174: 8 | D174: 4 | E174: 32 | F174: 8400 | G174: 9000 | H174: 9100 | I174: 9800 | K174: 81.15984694 | L174: 649.2787755
A175: APR2014 | B175: Res | C175: 5570 | D175: 4 | E175: 22280 | F175: 8400 | G175: 9000 | H175: 9100 | I175: 9900 | K175: 81.15984694 | L175: 452060.3475
A176: APR2014 | B176: Res | C176: 58 | D176: 3 | E176: 174 | F176: 8400 | G176: 9000 | H176: 9700 | K176: 70.57377995 | L176: 4093.279237
A177: APR2014 | B177: Res | C177: 1 | D177: 4 | E177: 4 | F177: 8400 | G177: 9000 | H177: 9700 | I177: 9900 | K177: 95.27460293 | L177: 95.27460293
A178: APR2014 | B178: Res | C178: 37 | D178: 3 | E178: 111 | F178: 8400 | G178: 9000 | H178: 9800 | K178: 70.57377995 | L178: 2611.229858
A179: APR2014 | B179: Res | C179: 44847 | D179: 3 | E179: 134541 | F179: 8400 | G179: 9000 | H179: 9900 | K179: 70.57377995 | L179: 3165022.309
A180: APR2014 | B180: Res | C180: 393452 | D180: 2 | E180: 786904 | F180: 8400 | G180: 9100 | K180: 45.87295697 | L180: 18048806.66
A181: APR2014 | B181: Res | C181: 169 | D181: 3 | E181: 507 | F181: 8400 | G181: 9100 | H181: 9700 | K181: 70.57377995 | L181: 11926.96881
A182: APR2014 | B182: Res | C182: 91 | D182: 3 | E182: 273 | F182: 8400 | G182: 9100 | H182: 9800 | K182: 70.57377995 | L182: 6422.213975
A183: APR2014 | B183: Res | C183: 85222 | D183: 3 | E183: 255666 | F183: 8400 | G183: 9100 | H183: 9900 | K183: 70.57377995 | L183: 6014438.675
A184: APR2014 | B184: Res | C184: 243 | D184: 2 | E184: 486 | F184: 8400 | G184: 9700 | K184: 59.98771296 | L184: 14577.01425
A185: APR2014 | B185: Res | C185: 2 | D185: 3 | E185: 6 | F185: 8400 | G185: 9700 | H185: 9900 | K185: 84.68853594 | L185: 169.3770719
A186: APR2014 | B186: Res | C186: 133 | D186: 2 | E186: 266 | F186: 8400 | G186: 9800 | K186: 59.98771296 | L186: 7978.365823
A187: APR2014 | B187: Res | C187: 63104 | D187: 2 | E187: 126208 | F187: 8400 | G187: 9900 | K187: 59.98771296 | L187: 3785464.638
A188: APR2014 | B188: Bus | C188: 90796 | D188: 1 | E188: 90796 | F188: 8500 | K188: 35.28688997 | L188: 3203908.462
A189: APR2014 | B189: Bus | C189: 552 | D189: 2 | E189: 1104 | F189: 8500 | G189: 8800 | K189: 70.57377995 | L189: 38956.72653
A190: APR2014 | B190: Bus | C190: 6 | D190: 3 | E190: 18 | F190: 8500 | G190: 8800 | H190: 9000 | K190: 81.15984694 | L190: 486.9590816
A191: APR2014 | B191: Bus | C191: 30 | D191: 3 | E191: 90 | F191: 8500 | G191: 8800 | H191: 9100 | K191: 81.15984694 | L191: 2434.795408
A192: APR2014 | B192: Bus | C192: 1 | D192: 4 | E192: 4 | F192: 8500 | G192: 8800 | H192: 9100 | I192: 9800 | K192: 105.8606699 | L192: 105.8606699
A193: APR2014 | B193: Bus | C193: 1 | D193: 4 | E193: 4 | F193: 8500 | G193: 8800 | H193: 9100 | I193: 9900 | K193: 105.8606699 | L193: 105.8606699
A194: APR2014 | B194: Bus | C194: 2 | D194: 3 | E194: 6 | F194: 8500 | G194: 8800 | H194: 9800 | K194: 95.27460293 | L194: 190.5492059
A195: APR2014 | B195: Bus | C195: 14 | D195: 3 | E195: 42 | F195: 8500 | G195: 8800 | H195: 9900 | K195: 95.27460293 | L195: 1333.844441
A196: APR2014 | B196: Bus | C196: 481 | D196: 2 | E196: 962 | F196: 8500 | G196: 9000 | K196: 45.87295697 | L196: 22064.8923
A197: APR2014 | B197: Bus | C197: 9 | D197: 3 | E197: 27 | F197: 8500 | G197: 9000 | H197: 9100 | K197: 56.45902396 | L197: 508.1312156
A198: APR2014 | B198: Bus | C198: 4 | D198: 4 | E198: 16 | F198: 8500 | G198: 9000 | H198: 9100 | I198: 9900 | K198: 81.15984694 | L198: 324.6393878
A199: APR2014 | B199: Bus | C199: 5 | D199: 3 | E199: 15 | F199: 8500 | G199: 9000 | H199: 9800 | K199: 70.57377995 | L199: 352.8688997
A200: APR2014 | B200: Bus | C200: 90 | D200: 3 | E200: 270 | F200: 8500 | G200: 9000 | H200: 9900 | K200: 70.57377995 | L200: 6351.640195
A201: APR2014 | B201: Bus | C201: 2428 | D201: 2 | E201: 4856 | F201: 8500 | G201: 9100 | K201: 45.87295697 | L201: 111379.5395
A202: APR2014 | B202: Bus | C202: 1 | D202: 3 | E202: 3 | F202: 8500 | G202: 9100 | H202: 9700 | K202: 70.57377995 | L202: 70.57377995
A203: APR2014 | B203: Bus | C203: 18 | D203: 3 | E203: 54 | F203: 8500 | G203: 9100 | H203: 9800 | K203: 70.57377995 | L203: 1270.328039
A204: APR2014 | B204: Bus | C204: 200 | D204: 3 | E204: 600 | F204: 8500 | G204: 9100 | H204: 9900 | K204: 70.57377995 | L204: 14114.75599
A205: APR2014 | B205: Bus | C205: 5 | D205: 2 | E205: 10 | F205: 8500 | G205: 9700 | K205: 59.98771296 | L205: 299.9385648
A206: APR2014 | B206: Bus | C206: 242 | D206: 2 | E206: 484 | F206: 8500 | G206: 9800 | K206: 59.98771296 | L206: 14517.02654
... 169 more rows

Sheet Relationships
B2: Based on 12/13 $ not including oncosts and overheads
F3: Labour Hrs | G3: Labour Rate | H3: Material Costs | I3: Total
B4: DC 1 Element Single Phase | C4: 0.93 | D4: 0.79 | F4: 1.15 | G4: 67.55 | H4: 50 | I4: =F4*labour+SS -> 127.6825
B5: DC 2 Element Single Phase | D5: 0.21 | F5: 1.15 | G5: 67.55 | H5: 125 | I5: =F5*labour+SD -> 202.6825
B6: DC Polyphase | C6: 0.07 | D6: 0.84 | F6: 1.87 | G6: 67.55 | H6: 173 | I6: =F6*labour+MP -> 299.3185
B7: CT Polyphase | D7: 0.16 | F7: 1.87 | G7: 67.55 | H7: 173 | I7: =F7*labour+MP -> 299.3185
B9: Solar | D9: Labour Hrs | F9: PV (Vol)
B10: Meters Replaced | C10: 0.75 | D10: 0.98 | E10: Single | F10: 52054
B11: Meters Reprogrammed | C11: 0.25 | D11: 1.22 | E11: Multi | F11: 935
F12: =F10/(F10+F11) -> 0.9823548284
F13: =F11/(F10+F11) -> 0.01764517164
B16: TYPE | C16: Lab - Hrs | D16: Lab - $ | E16: Materials | F16: Total | G16: Incl OC & OH | I16: Notes
B17: Primary | C17: =(D4*F4+D5*F5)*C4+(D6*F6+D7*F7)*C6 -> 1.2004 | D17: =labour*C17 -> 81.08702 | E17: =(D4*SS+D5*SD)*C4+(D6*MP+D7*H7)*C6 -> 73.2575 | F17: =D17+E17 -> 154.34452 | G17: =D17*(1+'Exit Fee Calculation excl PV'!$D$74)+E17*(1+'Exit Fee Calculation excl PV'!$D$73) -> 273.8734178 | H17: 1 | I17: Weighted based on meter population
B18: Controlled Load | E18: =SS -> 50 | F18: =D18+E18 -> 50 | G18: =D18*(1+'Exit Fee Calculation excl PV'!$D$74)+E18*(1+'Exit Fee Calculation excl PV'!$D$73) -> 79.08803261 | H18: =ROUND(G18/G17,1) -> 0.3 | I18: Cost of Single Phase single element meter only Labour and relate are costed to SCS
B19: Solar | C19: =D10*F12+D11*F13 -> 0.9842348412 | D19: =labour*C19 -> 66.48506352 | E19: =C10*(F12*SS+F13*MP) -> 39.12776708 | F19: =D19+E19 -> 105.6128306 | G19: =D19*(1+'Exit Fee Calculation excl PV'!$D$74)+E19*(1+'Exit Fee Calculation excl PV'!$D$73) -> 191.4365219 | H19: =ROUND(G19/G17,1) -> 0.7 | I19: Based on 75% meter replacement vs meter reprogram
